NUMERO_MANDATO;RIGA_MANDATO;QUIET;IMPORTO_RIGA;IMPORTO_MANDATO;BENEFICIARIO;CIG;TITOLO_PAGAMENTO;DATA_MANDATO;CAPITOLO;ARTICOLO;NUMERO_IMPEGNO;TITOLO;DESCR_TITOLO;LIVELLO_II;DESCR_LIVELLO_II;LIVELLO_III;DESCR_LIVELLO_III;LIVELLO_IV;DESCR_LIVELLO_IV;LIVELLO_V;DESCR_LIVELLO_V;DATA_PAG_EFF
1307;1;0;122;122;SALGAIM ECOLOGIC SPA;ZA22356639;SALDO Fatt.n. 20/VPA  del 30/04/2018;09/10/2018;6214;0;178;1;Spese correnti;3;Acquisto di beni e servizi;2;Acquisto di servizi;99;Altri servizi;999;Altri servizi diversi n.a.c.;09/10/2018
1308;1;0;659,09;659,09;GLOBAL POWER SPA;622385037F;Fatt.n. V0/117519  del 01/10/2018 Fattura Energia Elettrica - MUNICIPIO - MESE 09/2018;15/10/2018;593;1;67;1;Spese correnti;3;Acquisto di beni e servizi;2;Acquisto di servizi;5;Utenze e canoni;4;Energia elettrica;15/10/2018
1309;1;0;67,15;67,15;GLOBAL POWER SPA;622385037F;Fatt.n. V0/117525  del 01/10/2018 Fattura Energia Elettrica - EX DISTRETTO - MESE 09/2018;15/10/2018;593;2;68;1;Spese correnti;3;Acquisto di beni e servizi;2;Acquisto di servizi;5;Utenze e canoni;4;Energia elettrica;15/10/2018
1310;1;0;69,58;69,58;GLOBAL POWER SPA;622385037F;Fatt.n. V0/117529  del 01/10/2018 Fattura Energia Elettrica - VIA LEONARDO DA VINCI - MESE 09/2018;15/10/2018;593;3;69;1;Spese correnti;3;Acquisto di beni e servizi;2;Acquisto di servizi;5;Utenze e canoni;4;Energia elettrica;15/10/2018
1311;1;0;31,18;206,48;GLOBAL POWER SPA;622385037F;Fatt.n. V0/117533  del 01/10/2018 Fattura Energia Elettrica - VIA MARCONI - MESE 09/2018;15/10/2018;593;4;71;1;Spese correnti;3;Acquisto di beni e servizi;2;Acquisto di servizi;5;Utenze e canoni;4;Energia elettrica;15/10/2018
1311;2;0;175,3;206,48;GLOBAL POWER SPA;622385037F;Fatt.n. V0/117532  del 01/10/2018 Fattura Energia Elettrica - VIA MARCONI, 24 - MESE 09/2018;15/10/2018;593;4;71;1;Spese correnti;3;Acquisto di beni e servizi;2;Acquisto di servizi;5;Utenze e canoni;4;Energia elettrica;15/10/2018
1312;1;0;68,25;68,25;GLOBAL POWER SPA;622385037F;Fatt.n. V0/117520  del 01/10/2018 Fattura Energia Elettrica - VIA MARCONI, 26 - MESE 09/2018;15/10/2018;593;6;70;1;Spese correnti;3;Acquisto di beni e servizi;2;Acquisto di servizi;5;Utenze e canoni;4;Energia elettrica;15/10/2018
1313;1;0;38,51;38,51;GLOBAL POWER SPA;622385037F;Fatt.n. V0/117528  del 01/10/2018 Fattura Energia Elettrica - CENTRO CULTURALE STEFANUTO - MESE 09/2018;15/10/2018;595;0;72;1;Spese correnti;3;Acquisto di beni e servizi;2;Acquisto di servizi;5;Utenze e canoni;4;Energia elettrica;15/10/2018
1314;1;0;86,71;86,71;GLOBAL POWER SPA;622385037F;Fatt.n. V0/117527  del 01/10/2018 Fattura Energia Elettrica - SCUOLA MATERNA E MEDIA - MESE 09/2018;15/10/2018;2803;0;74;1;Spese correnti;3;Acquisto di beni e servizi;2;Acquisto di servizi;5;Utenze e canoni;4;Energia elettrica;15/10/2018
1315;1;0;270,07;270,07;GLOBAL POWER SPA;622385037F;Fatt.n. V0/117526  del 01/10/2018 Fattura Energia Elettrica - SCUOLA ELEMENTARE - MESE 09/2018;15/10/2018;2975;1;73;1;Spese correnti;3;Acquisto di beni e servizi;2;Acquisto di servizi;5;Utenze e canoni;4;Energia elettrica;15/10/2018
1316;1;0;138,88;138,88;GLOBAL POWER SPA;622385037F;Fatt.n. V0/117527  del 01/10/2018 Fattura Energia Elettrica - SCUOLA MATERNA E MEDIA - MESE 09/2018;15/10/2018;3186;1;75;1;Spese correnti;3;Acquisto di beni e servizi;2;Acquisto di servizi;5;Utenze e canoni;4;Energia elettrica;15/10/2018
1317;1;0;64,23;64,23;GLOBAL POWER SPA;622385037F;Fatt.n. V0/117521  del 01/10/2018 Fattura Energia Elettrica - CIMITERO - MESE 09/2018;15/10/2018;5190;0;76;1;Spese correnti;3;Acquisto di beni e servizi;2;Acquisto di servizi;5;Utenze e canoni;4;Energia elettrica;15/10/2018
1318;1;0;74,37;74,37;GLOBAL POWER SPA;622385037F;Fatt.n. V0/117524  del 01/10/2018 Fattura Energia Elettrica - SOLL. SMALT. RIFIUTI - MESE 09/2018;15/10/2018;5810;0;80;1;Spese correnti;3;Acquisto di beni e servizi;2;Acquisto di servizi;5;Utenze e canoni;4;Energia elettrica;15/10/2018
1319;1;0;712,21;712,21;GLOBAL POWER SPA;622385037F;Fatt.n. V0/117522  del 01/10/2018 Fattura Energia Elettrica - IMPIANTI SPORTIVI - MESE 09/2018;15/10/2018;6496;1;77;1;Spese correnti;3;Acquisto di beni e servizi;2;Acquisto di servizi;5;Utenze e canoni;4;Energia elettrica;15/10/2018
1320;1;0;249,32;249,32;GLOBAL POWER SPA;622385037F;Fatt.n. V0/117523  del 01/10/2018 Fattura Energia Elettrica - BOCIOFILA - MESE 09/2018;15/10/2018;6496;2;78;1;Spese correnti;3;Acquisto di beni e servizi;2;Acquisto di servizi;5;Utenze e canoni;4;Energia elettrica;15/10/2018
1321;1;0;31,38;5.876,62;GLOBAL POWER SPA;622385037F;Fatt.n. V0/117531  del 01/10/2018 Fattura Energia Elettrica - ILL.PUBBL. VIA BASEDAT - MESE 09/2018;15/10/2018;7470;0;79;1;Spese correnti;3;Acquisto di beni e servizi;2;Acquisto di servizi;5;Utenze e canoni;4;Energia elettrica;15/10/2018
1321;2;0;74,21;5.876,62;GLOBAL POWER SPA;622385037F;Fatt.n. V0/117530  del 01/10/2018 Fattura Energia Elettrica - ILL. PUBBL. VIA CASTELLO - MESE 09/2018;15/10/2018;7470;0;79;1;Spese correnti;3;Acquisto di beni e servizi;2;Acquisto di servizi;5;Utenze e canoni;4;Energia elettrica;15/10/2018
1321;3;0;345,52;5.876,62;GLOBAL POWER SPA;622385037F;Fatt.n. V0/117534  del 01/10/2018 Fattura Energia Elettrica - ILL.PUBBL. VIA VENEZIA - MESE 09/2018;15/10/2018;7470;0;79;1;Spese correnti;3;Acquisto di beni e servizi;2;Acquisto di servizi;5;Utenze e canoni;4;Energia elettrica;15/10/2018
1321;4;0;5.425,51;5.876,62;GLOBAL POWER SPA;622385037F;Fatt.n. V0/117535  del 01/10/2018 Fattura Energia Elettrica - ILLUMINAZIONE PUBBLICA - MESE 09/2018;15/10/2018;7470;0;79;1;Spese correnti;3;Acquisto di beni e servizi;2;Acquisto di servizi;5;Utenze e canoni;4;Energia elettrica;15/10/2018
1388;1;0;2.327,54;2.327,54;COLLABORATORI E AMMINISTRATORI DIVERSI; ;STIPENDI MESE DI: OTTOBRE 18;19/10/2018;10;0;50;1;Spese correnti;3;Acquisto di beni e servizi;2;Acquisto di servizi;1;Organi e incarichi istituzionali dell'amministrazione;1;Organi istituzionali dell'amministrazione - Indennità;19/10/2018
1393;1;0;211,2;211,2;ECONOMO COMUNALE - DELLA BIANCA ADRIANA; ;Rimborso bolletta N.    22 del  25-09-18 MARCHE DA BOLLO PER REGISTRAZIONE CONTRATTO IN CONCESSIONE D' USO CENTRO CULTURALE (N.12 MARCHE AL COSTO DI EURO 17,60);19/10/2018;400;0;115;1;Spese correnti;3;Acquisto di beni e servizi;1;Acquisto di beni;2;Altri beni di consumo;1;Carta, cancelleria e stampati;19/10/2018
1395;1;0;2,37;2,37;ECONOMO COMUNALE - DELLA BIANCA ADRIANA; ;Rimborso bolletta N.    24 del  27-09-18 INCAPIENZA SPESE POSTALI  PER PAGAMENTO TASSE AUTOMOBILISTICHE PEUGEOT TARGA CG606KG  DI CUI ALLA RICEVUTA ALLEGATA ALLA BOLLETTA IN USCITA  N.23 DEL 27/09/2018;19/10/2018;650;0;117;1;Spese correnti;3;Acquisto di beni e servizi;2;Acquisto di servizi;16;Servizi amministrativi;2;Spese postali;19/10/2018
1396;1;0;32;32;ECONOMO COMUNALE - DELLA BIANCA ADRIANA; ;Rimborso bolletta N.    20 del  20-07-18 RICAMBI MANUTENZIONE ATTREZZATURE PER IL VERDE;19/10/2018;6210;0;128;1;Spese correnti;3;Acquisto di beni e servizi;2;Acquisto di servizi;9;Manutenzione ordinaria e riparazioni;5;Manutenzione ordinaria e riparazioni di attrezzature;19/10/2018
1397;1;0;60;60;ECONOMO COMUNALE - DELLA BIANCA ADRIANA; ;Rimborso bolletta N.    21 del  20-07-18 RIPARAZIONE PNEUMATICO DX POSTERIORE TRATTORINO;19/10/2018;7370;0;130;1;Spese correnti;3;Acquisto di beni e servizi;1;Acquisto di beni;2;Altri beni di consumo;999;Altri beni e materiali di consumo n.a.c.;19/10/2018
1398;1;0;450;450;NOMINATIVO OMESSO PER MOTIVI DI RISERVATEZZA; ;AFFIDO EXTRAFAMILIARE- IMPEGNO DI SPESA E LIQUIDAZIONE PERIODO SETTEMBRE 2018 CONTRIBUTO ECONOMICO A FAMIGLIA AFFIDATARIA COME DA LINEE GUIDA SULL'AFFIDO 2008;23/10/2018;6145;0;333;1;Spese correnti;4;Trasferimenti correnti;2;Trasferimenti correnti a Famiglie;5;Altri trasferimenti a famiglie;999;Altri trasferimenti a famiglie n.a.c.;23/10/2018
1399;1;0;154,88;309,76;OLIVETTI SPA;Z050E4F4CA;SALDO Fatt.n. 0000012744  del 07/08/2018 Trasporto Always on - flat - 07/2018;23/10/2018;593;1;313;1;Spese correnti;3;Acquisto di beni e servizi;2;Acquisto di servizi;5;Utenze e canoni;1;Telefonia fissa;23/10/2018
1399;2;0;154,88;309,76;OLIVETTI SPA;Z050E4F4CA;SALDO Fatt.n. 0000014025  del 13/09/2018 Trasporto Always on - flat - 08/2018;23/10/2018;593;1;313;1;Spese correnti;3;Acquisto di beni e servizi;2;Acquisto di servizi;5;Utenze e canoni;1;Telefonia fissa;23/10/2018
1400;1;0;265,09;265,09;ATIS S.R.L.;ZF724F13A5;SALDO Fatt.n. 568/V5  del 17/09/2018 Fattura   - Rapportino intervento n.ro 93641 del 02/07/2018 Presso: Mensa scolastica     PA - (CINTO CAOMAGGIORE)  - Rapportino intervento n.ro 93828 del 05/07/2018;23/10/2018;594;0;367;1;Spese correnti;3;Acquisto di beni e servizi;2;Acquisto di servizi;9;Manutenzione ordinaria e riparazioni;4;Manutenzione ordinaria e riparazioni di impianti e macchinari;23/10/2018
1402;1;0;540;4.355,66;UNICOOPER SERVIZI S.C.;Z0221E0A5C;SALDO Fatt.n. 87/01  del 31/07/2018;23/10/2018;597;0;163;1;Spese correnti;3;Acquisto di beni e servizi;2;Acquisto di servizi;13;Servizi ausiliari per il funzionamento dell'ente;2;Servizi di pulizia e lavanderia;23/10/2018
1402;2;0;3.815,66;4.355,66;UNICOOPER SERVIZI S.C.;Z0221E0A5C;SALDO Fatt.n. 86/01  del 31/07/2018;23/10/2018;597;0;163;1;Spese correnti;3;Acquisto di beni e servizi;2;Acquisto di servizi;13;Servizi ausiliari per il funzionamento dell'ente;2;Servizi di pulizia e lavanderia;23/10/2018
1403;1;0;67,59;67,59;ENEL ENERGIA SPA - SOC. CON UNICO SOCIO; ;Fatt.n. 004811775707 del 06/10/2018 ENEL GAS - MESE 09/2018 - VIA TRIESTE, 2/A;23/10/2018;593;2;90;1;Spese correnti;3;Acquisto di beni e servizi;2;Acquisto di servizi;5;Utenze e canoni;6;Gas;23/10/2018
1404;1;0;11,33;11,33;ENEL ENERGIA SPA - SOC. CON UNICO SOCIO; ;Fatt.n. 004811778858 del 06/10/2018 ENEL GAS - MESE 09/2018 - VIA G. MARCONI, 25;23/10/2018;593;5;88;1;Spese correnti;3;Acquisto di beni e servizi;2;Acquisto di servizi;5;Utenze e canoni;6;Gas;23/10/2018
1405;1;0;11,33;11,33;ENEL ENERGIA SPA - SOC. CON UNICO SOCIO; ;Fatt.n. 004811774957 del 06/10/2018 ENEL GAS - MESE 09/2018 - VIA G. MARCONI, 26;23/10/2018;593;6;89;1;Spese correnti;3;Acquisto di beni e servizi;2;Acquisto di servizi;5;Utenze e canoni;6;Gas;23/10/2018
1406;1;0;11,33;11,33;ENEL ENERGIA SPA - SOC. CON UNICO SOCIO; ;Fatt.n. 004811780318 del 06/10/2018 ENEL GAS - 09/2018 - CENTRO CULTURALE;23/10/2018;595;0;91;1;Spese correnti;3;Acquisto di beni e servizi;2;Acquisto di servizi;5;Utenze e canoni;6;Gas;23/10/2018
1407;1;0;89,41;89,41;LIVENZA TAGLIAMENTO ACQUE S.P.A.; ;CONTRIBUTI ECONOMICI PER SOSTENERE LE SPESE RELATIVE AL CONSUMO DI ACQUA PER CITTADINI IN STATO DI BISOGNO RESIDENTI NEL COMUNE-UTILIZZO FONDO CATOI-LEMENE - COD. UTENZA 56568 SIG. C.F. ACCONTO;23/10/2018;6852;0;274;1;Spese correnti;4;Trasferimenti correnti;2;Trasferimenti correnti a Famiglie;2;Interventi assistenziali;999;Altri assegni e sussidi assistenziali;23/10/2018
1408;1;0;48;889,59;LIVENZA TAGLIAMENTO ACQUE S.P.A.; ;CONTRIBUTI ECONOMICI PER SOSTENERE LE SPESE RELATIVE AL CONSUMO DI ACQUA PER CITTADINI IN STATO DI BISOGNO RESIDENTI NEL COMUNE-UTILIZZO FONDO CATOI-LEMENE - UTENZA 72857 SIG. S.F.;23/10/2018;6852;0;432;1;Spese correnti;4;Trasferimenti correnti;2;Trasferimenti correnti a Famiglie;2;Interventi assistenziali;999;Altri assegni e sussidi assistenziali;23/10/2018
1408;2;0;83;889,59;LIVENZA TAGLIAMENTO ACQUE S.P.A.; ;CONTRIBUTI ECONOMICI PER SOSTENERE LE SPESE RELATIVE AL CONSUMO DI ACQUA PER CITTADINI IN STATO DI BISOGNO RESIDENTI NEL COMUNE-UTILIZZO FONDO CATOI-LEMENE - UTENZA 2584 SIG. P.L.;23/10/2018;6852;0;432;1;Spese correnti;4;Trasferimenti correnti;2;Trasferimenti correnti a Famiglie;2;Interventi assistenziali;999;Altri assegni e sussidi assistenziali;23/10/2018
1408;3;0;97;889,59;LIVENZA TAGLIAMENTO ACQUE S.P.A.; ;CONTRIBUTI ECONOMICI PER SOSTENERE LE SPESE RELATIVE AL CONSUMO DI ACQUA PER CITTADINI IN STATO DI BISOGNO RESIDENTI NEL COMUNE-UTILIZZO FONDO CATOI-LEMENE - UTENZA 81919 SIG. I.A.;23/10/2018;6852;0;432;1;Spese correnti;4;Trasferimenti correnti;2;Trasferimenti correnti a Famiglie;2;Interventi assistenziali;999;Altri assegni e sussidi assistenziali;23/10/2018
1408;4;0;130;889,59;LIVENZA TAGLIAMENTO ACQUE S.P.A.; ;CONTRIBUTI ECONOMICI PER SOSTENERE LE SPESE RELATIVE AL CONSUMO DI ACQUA PER CITTADINI IN STATO DI BISOGNO RESIDENTI NEL COMUNE-UTILIZZO FONDO CATOI-LEMENE- UTENZA 80397 SIG. E.J.S.;23/10/2018;6852;0;432;1;Spese correnti;4;Trasferimenti correnti;2;Trasferimenti correnti a Famiglie;2;Interventi assistenziali;999;Altri assegni e sussidi assistenziali;23/10/2018
1408;5;0;130;889,59;LIVENZA TAGLIAMENTO ACQUE S.P.A.; ;CONTRIBUTI ECONOMICI PER SOSTENERE LE SPESE RELATIVE AL CONSUMO DI ACQUA PER CITTADINI IN STATO DI BISOGNO RESIDENTI NEL COMUNE-UTILIZZO FONDO CATOI-LEMENE - UTENZA 2248 SIG. B.F.;23/10/2018;6852;0;432;1;Spese correnti;4;Trasferimenti correnti;2;Trasferimenti correnti a Famiglie;2;Interventi assistenziali;999;Altri assegni e sussidi assistenziali;23/10/2018
1408;6;0;131;889,59;LIVENZA TAGLIAMENTO ACQUE S.P.A.; ;CONTRIBUTI ECONOMICI PER SOSTENERE LE SPESE RELATIVE AL CONSUMO DI ACQUA PER CITTADINI IN STATO DI BISOGNO RESIDENTI NEL COMUNE-UTILIZZO FONDO CATOI-LEMENE - UTENZA 86408 SIG. B.G.;23/10/2018;6852;0;432;1;Spese correnti;4;Trasferimenti correnti;2;Trasferimenti correnti a Famiglie;2;Interventi assistenziali;999;Altri assegni e sussidi assistenziali;23/10/2018
1408;7;0;270,59;889,59;LIVENZA TAGLIAMENTO ACQUE S.P.A.; ;CONTRIBUTI ECONOMICI PER SOSTENERE LE SPESE RELATIVE AL CONSUMO DI ACQUA PER CITTADINI IN STATO DI BISOGNO RESIDENTI NEL COMUNE-UTILIZZO FONDO CATOI-LEMENE - UTENZA 56568 SIG. C.F. SALDO;23/10/2018;6852;0;432;1;Spese correnti;4;Trasferimenti correnti;2;Trasferimenti correnti a Famiglie;2;Interventi assistenziali;999;Altri assegni e sussidi assistenziali;23/10/2018
1409;1;0;107,34;107,34;SOCIETA' ITALIANA DEGLI AUTORI ED EDITORI (S.I.A.E.);ZC623DB6B8;SALDO Fatt.n. 1618017473  del 11/06/2018;30/10/2018;3940;0;379;1;Spese correnti;3;Acquisto di beni e servizi;2;Acquisto di servizi;99;Altri servizi;999;Altri servizi diversi n.a.c.;30/10/2018
1410;1;0;5.195,52;5.195,52;IDEALVIAGGI SNC;75531386A7;SALDO Fatt.n. 102/PA  del 12/10/2018 APPALTO SERVIZIO DI TRASPORTO SCOLASTICO A.S. 2018/2019-2019/2020;30/10/2018;3420;0;350;1;Spese correnti;3;Acquisto di beni e servizi;2;Acquisto di servizi;15;Contratti di servizio pubblico;2;Contratti di servizio di trasporto scolastico;30/10/2018
1411;1;0;683,2;683,2;TIPOGRAFIA SAGITTARIA SAS DI CINTO ANDREA & C.;Z462558BFE;SALDO Fatt.n. 000008/A18  del 23/10/2018 PIEGHEVOLI E STAMPA MATERIALE INFORMATIVO FESTA DELLE RISORGIVE 15/16 SETTEMBRE 2018;30/10/2018;6220;0;386;1;Spese correnti;3;Acquisto di beni e servizi;2;Acquisto di servizi;99;Altri servizi;999;Altri servizi diversi n.a.c.;30/10/2018
1412;1;0;59,43;59,43;LEGGERE SRL;Z7C240C4CC;SALDO Fatt.n. 15780  del 28/09/2018 FORNITURA LIBRI BIBLIOTECA;30/10/2018;3755;0;295;1;Spese correnti;3;Acquisto di beni e servizi;1;Acquisto di beni;1;Giornali, riviste e pubblicazioni;2;Pubblicazioni;30/10/2018
1413;1;0;854,98;854,98;PIANEZZOLA CLAUDIO;Z092344006;SALDO Fatt.n. 23/01  del 28/09/2018;30/10/2018;7460;1;180;1;Spese correnti;3;Acquisto di beni e servizi;2;Acquisto di servizi;15;Contratti di servizio pubblico;15;Contratti di servizio per l'illuminazione pubblica;30/10/2018
1414;1;0;344,6;560,7;NOMINATIVO OMESSO PER MOTIVI DI RISERVATEZZA; ;LIQUIDAZIONE DEL BANDO PUBBLICO PER L'EROGAZIONE DI CONTRIBUTI A SOSTEGNO DELLE SPESE RELATIVE AI CONSUMI DI GAS DAL 01/01/2017 AL 31/12/2017;30/10/2018;6851;0;396;1;Spese correnti;4;Trasferimenti correnti;2;Trasferimenti correnti a Famiglie;2;Interventi assistenziali;999;Altri assegni e sussidi assistenziali;30/10/2018
1414;2;0;216,1;560,7;NOMINATIVO OMESSO PER MOTIVI DI RISERVATEZZA; ;LIQUIDAZIONE DEL BANDO PUBBLICO PER L'EROGAZIONE DI CONTRIBUTI A SOSTEGNO DELLE SPESE RELATIVE AI CONSUMI DI GAS DAL 01/01/2017 AL 31/12/2017;30/10/2018;6851;0;396;1;Spese correnti;4;Trasferimenti correnti;2;Trasferimenti correnti a Famiglie;2;Interventi assistenziali;999;Altri assegni e sussidi assistenziali;30/10/2018
1415;1;0;132;132;DELFINO & PARTNERS SPA; ;SALDO Fatt.n. 983/PA  del 15/10/2018 QUOTA PARTECIPAZIONE SEMINARIO DEL 11/10/18 SUI RILIEVI DELLA CORTE DEI CONTI SULLA GESTIONE FINANZIARIA;30/10/2018;370;0;378;1;Spese correnti;3;Acquisto di beni e servizi;2;Acquisto di servizi;4;Acquisto di servizi per formazione e addestramento del personale dell'ente;999;Acquisto di servizi per altre spese per formazione e addestramento n.a.c.;30/10/2018
1417;1;0;600;600;ARTEVEN - ASSOCIAZIONE REGIONALE;ZD024166AA;SALDO Fatt.n. 000168PA  del 03/10/2018 SALDO PROGRAMMA CIRCOVAGANDO 2018;06/11/2018;3940;0;296;1;Spese correnti;3;Acquisto di beni e servizi;2;Acquisto di servizi;99;Altri servizi;999;Altri servizi diversi n.a.c.;06/11/2018
1418;1;0;470,75;470,75;VIVENDA SPA;7245909942;SALDO Fatt.n. VB18002405  del 22/10/2018 PASTI INSEGNANTI RISTORAZIONE CINTO;06/11/2018;3000;0;402;1;Spese correnti;3;Acquisto di beni e servizi;2;Acquisto di servizi;15;Contratti di servizio pubblico;6;Contratti di servizio per le mense scolastiche;06/11/2018
1419;1;0;1.879,69;1.879,69;TESORIERE COMUNALE; ;ERARIO IVA - VERSAMENTO IVA 3^ TRIMESTRE 2018;06/11/2018;8200;0;404;1;Spese correnti;10;Altre spese correnti;3;Versamenti IVA a debito;1;Versamenti IVA a debito per le gestioni commerciali;1;Versamenti IVA a debito per le gestioni commerciali;06/11/2018
1421;1;0;183;183;PRA VERDE DI BAVARESCO ZENOBIO;ZF72151F31;SALDO Fatt.n. 1/40  del 13/04/2018;06/11/2018;6213;0;406;1;Spese correnti;3;Acquisto di beni e servizi;2;Acquisto di servizi;9;Manutenzione ordinaria e riparazioni;8;Manutenzione ordinaria e riparazioni di beni immobili;06/11/2018
1422;1;0;154,88;154,88;OLIVETTI SPA;Z050E4F4CA;SALDO Fatt.n. 0000015632  del 11/10/2018 TRASPORTO ALWAYS ON FLAT;06/11/2018;593;1;313;1;Spese correnti;3;Acquisto di beni e servizi;2;Acquisto di servizi;5;Utenze e canoni;1;Telefonia fissa;06/11/2018
1423;1;0;335,96;335,96;ENEL ENERGIA SPA - SOC. CON UNICO SOCIO; ;SALDO FATTURA EURO 13,96 - E RATE 18934041/2/3/4 DI EURO 80,50 CADAUNA - RIFERIMENTO EL KASMI JAMILA;06/11/2018;6851;0;349;1;Spese correnti;4;Trasferimenti correnti;2;Trasferimenti correnti a Famiglie;2;Interventi assistenziali;999;Altri assegni e sussidi assistenziali;06/11/2018
1424;1;0;203,29;820,04;C.I.R. FOOD S.C.;Z8922B9D40;SALDO Fatt.n. 5200020693  del 30/06/2018 Destinatario:0000522111,SC.PRIMARIA G.PASCOLI-BAMBINICOMUNE DI CAOMAGGIORE,VIA TORINO 2,CINTO CAO MAGGIORE,30020,VE;06/11/2018;3000;0;102;1;Spese correnti;3;Acquisto di beni e servizi;2;Acquisto di servizi;15;Contratti di servizio pubblico;6;Contratti di servizio per le mense scolastiche;06/11/2018
1424;2;0;616,75;820,04;C.I.R. FOOD S.C.;Z8922B9D40;SALDO Fatt.n. 5200020692  del 30/06/2018 Destinatario:0000522112,SC. INFANZIA DI CAOMAGGIORE-BAMBINICOMUNE DI CAOMAGGIORE,VIA TORINO 2,CINTO  CAO MAGGIORE,30020,VE;06/11/2018;3000;0;102;1;Spese correnti;3;Acquisto di beni e servizi;2;Acquisto di servizi;15;Contratti di servizio pubblico;6;Contratti di servizio per le mense scolastiche;06/11/2018
1425;1;0;37,9;96,47;C.I.R. FOOD S.C.;Z8922B9D40;SALDO Fatt.n. 5200014184  del 30/04/2018 Destinatario:0000510656,DIPENDENTI COM. CINTO CAO MAGGIORE,---- .,CINTO CAO MAGGIORE,30020,VE;06/11/2018;775;0;103;1;Spese correnti;3;Acquisto di beni e servizi;2;Acquisto di servizi;14;Servizi di ristorazione;999;Altri servizi di ristorazione;06/11/2018
1425;2;0;58,57;96,47;C.I.R. FOOD S.C.;Z8922B9D40;SALDO Fatt.n. 5200017677  del 31/05/2018 Destinatario:0000510656,DIPENDENTI COM. CINTO CAO MAGGIORE,---- .,CINTO CAO MAGGIORE,30020,VE;06/11/2018;775;0;103;1;Spese correnti;3;Acquisto di beni e servizi;2;Acquisto di servizi;14;Servizi di ristorazione;999;Altri servizi di ristorazione;06/11/2018
1426;1;0;565,06;2.535,90;C.I.R. FOOD S.C.;Z8922B9D40;SALDO Fatt.n. 5200014183  del 30/04/2018 Destinatario:0000522111,SC.PRIMARIA G.PASCOLI-BAMBINICOMUNE DI CAOMAGGIORE,VIA TORINO 2,CINTO CAO MAGGIORE,30020,VE;06/11/2018;3000;0;102;1;Spese correnti;3;Acquisto di beni e servizi;2;Acquisto di servizi;15;Contratti di servizio pubblico;6;Contratti di servizio per le mense scolastiche;06/11/2018
1426;2;0;571,96;2.535,90;C.I.R. FOOD S.C.;Z8922B9D40;SALDO Fatt.n. 5200014182  del 30/04/2018 Destinatario:0000522112,SC. INFANZIA DI CAOMAGGIORE-BAMBINICOMUNE DI CAOMAGGIORE,VIA TORINO 2,CINTO  CAO MAGGIORE,30020,VE;06/11/2018;3000;0;102;1;Spese correnti;3;Acquisto di beni e servizi;2;Acquisto di servizi;15;Contratti di servizio pubblico;6;Contratti di servizio per le mense scolastiche;06/11/2018
1426;3;0;644,31;2.535,90;C.I.R. FOOD S.C.;Z8922B9D40;SALDO Fatt.n. 5200017675  del 31/05/2018 Destinatario:0000522112,SC. INFANZIA DI CAOMAGGIORE-BAMBINICOMUNE DI CAOMAGGIORE,VIA TORINO 2,CINTO  CAO MAGGIORE,30020,VE;06/11/2018;3000;0;102;1;Spese correnti;3;Acquisto di beni e servizi;2;Acquisto di servizi;15;Contratti di servizio pubblico;6;Contratti di servizio per le mense scolastiche;06/11/2018
1426;4;0;754,57;2.535,90;C.I.R. FOOD S.C.;Z8922B9D40;SALDO Fatt.n. 5200017676  del 31/05/2018 Destinatario:0000522111,SC.PRIMARIA G.PASCOLI-BAMBINICOMUNE DI CAOMAGGIORE,VIA TORINO 2,CINTO CAO MAGGIORE,30020,VE;06/11/2018;3000;0;102;1;Spese correnti;3;Acquisto di beni e servizi;2;Acquisto di servizi;15;Contratti di servizio pubblico;6;Contratti di servizio per le mense scolastiche;06/11/2018
1427;1;0;1.952,00;1.952,00;PIANEZZOLA CLAUDIO;ZF714929CD;SALDO Fatt.n. 19/01  del 30/08/2018;06/11/2018;9459;0;346;2;Spese in conto capitale;2;Investimenti fissi lordi e acquisto di terreni;1;Beni materiali;9;Beni immobili;19;Fabbricati ad uso strumentale;06/11/2018
1460;1;0;36,2;36,2;DIPENDENTI COMUNALI DIVERSI; ;STIPENDI MESE DI: NOVEMBRE 18;13/11/2018;230;0;94;1;Spese correnti;3;Acquisto di beni e servizi;2;Acquisto di servizi;2;Organizzazione eventi, pubblicita` e servizi per trasferta;1;Rimborso per viaggio e trasloco;13/11/2018
1499;1;0;2.327,54;2.327,54;COLLABORATORI E AMMINISTRATORI DIVERSI; ;STIPENDI MESE DI: NOVEMBRE 18;13/11/2018;10;0;50;1;Spese correnti;3;Acquisto di beni e servizi;2;Acquisto di servizi;1;Organi e incarichi istituzionali dell'amministrazione;1;Organi istituzionali dell'amministrazione - Indennità;13/11/2018
1504;1;0;54,9;54,9;HALLEY VENETO S.R.L.; ;SALDO Fatt.n. 1/181092  del 28/09/2018 NOTA DI CONSEGNA N. 102 DEL 10/09/18 - ACQUISTO N. 5 BADGE PERSONALIZZATI - BUONO ECONOMALE 115/2018;13/11/2018;400;0;115;1;Spese correnti;3;Acquisto di beni e servizi;1;Acquisto di beni;2;Altri beni di consumo;1;Carta, cancelleria e stampati;13/11/2018
1505;1;0;378;378;LEGGERE SRL;Z7C240C4CC;SALDO Fatt.n. 18146  del 31/10/2018 FORNITURA LIBRI ALLA BIBLIOTECA COMUNALE;13/11/2018;3755;0;295;1;Spese correnti;3;Acquisto di beni e servizi;1;Acquisto di beni;1;Giornali, riviste e pubblicazioni;2;Pubblicazioni;13/11/2018
1506;1;0;5.195,52;5.195,52;IDEALVIAGGI SNC;75531386A7;SALDO Fatt.n. 113/PA  del 09/11/2018 SERVIZIO TRASPORTO SCOLASTICO MESE OTTOBRE 2018;13/11/2018;3420;0;398;1;Spese correnti;3;Acquisto di beni e servizi;2;Acquisto di servizi;15;Contratti di servizio pubblico;2;Contratti di servizio di trasporto scolastico;13/11/2018
1507;1;0;305;780,8;DEMO SYSTEM SNC DI PIVETTA & C.;ZBF23A775B;SALDO Fatt.n. FATTPA 38_18  del 10/11/2018 DISINFESTAZIONE STRAORDINARIA CONTRO INSETTI ADUTI AREA SCUOLE DEL 08/09/2018;13/11/2018;6214;0;368;1;Spese correnti;3;Acquisto di beni e servizi;2;Acquisto di servizi;99;Altri servizi;999;Altri servizi diversi n.a.c.;13/11/2018
1507;2;0;475,8;780,8;DEMO SYSTEM SNC DI PIVETTA & C.;ZBF23A775B;SALDO Fatt.n. FATTPA 39_18  del 10/11/2018 SERVIZIO DISINFESTAZIONE LARVICIDA CIRCOLARE ULSS 4 DEL 11/09/2018;13/11/2018;6214;0;368;1;Spese correnti;3;Acquisto di beni e servizi;2;Acquisto di servizi;99;Altri servizi;999;Altri servizi diversi n.a.c.;13/11/2018
1508;1;0;451,4;451,4;DEMO SYSTEM SNC DI PIVETTA & C.;Z2B24C43E7;SALDO Fatt.n. FATTPA 37_18  del 10/11/2018 SERVIZI DI DISINFESTAZIONE PER INTERVENTO STRAORDINARIO DEL 04/09/18 PER CASO DI CONTAGIO DA WEST NILE VIRUS;13/11/2018;5900;0;397;1;Spese correnti;4;Trasferimenti correnti;1;Trasferimenti correnti a Amministrazioni Pubbliche;2;Trasferimenti correnti a Amministrazioni Locali;11;Trasferimenti correnti a Aziende sanitarie locali  n.a.f.;13/11/2018
1509;1;0;622,2;622,2;DEMO SYSTEM SNC DI PIVETTA & C.;ZEF24F8143;SALDO Fatt.n. FATTPA 40_18  del 10/11/2018 DISINFESTAZIONE CONTRO INSETTI ADUTI AREE DI MAGGIORE AGGREGAZIONE COME DA CIRCOLARE ULLS 4;13/11/2018;5900;0;385;1;Spese correnti;4;Trasferimenti correnti;1;Trasferimenti correnti a Amministrazioni Pubbliche;2;Trasferimenti correnti a Amministrazioni Locali;11;Trasferimenti correnti a Aziende sanitarie locali  n.a.f.;13/11/2018
1510;1;0;7,04;50,04;TELECOM ITALIA S.p.A.;X700D1930B;SALDO Fatt.n. 8E00089367  del 06/02/2018 TIM SPA - 2BIM 2018 - FAX 0421/241030;13/11/2018;593;1;313;1;Spese correnti;3;Acquisto di beni e servizi;2;Acquisto di servizi;5;Utenze e canoni;1;Telefonia fissa;13/11/2018
1510;2;0;13,02;50,04;TELECOM ITALIA S.p.A.;X700D1930B;SALDO Fatt.n. 8E00089509  del 06/02/2018 TIM SPA - 2BIM 2018 - CENTRALINO 0421/209535;13/11/2018;593;1;313;1;Spese correnti;3;Acquisto di beni e servizi;2;Acquisto di servizi;5;Utenze e canoni;1;Telefonia fissa;13/11/2018
1510;3;0;29,98;50,04;TELECOM ITALIA S.p.A.;X700D1930B;SALDO Fatt.n. 8E00090389  del 06/02/2018 TIM SPA - 2BIM 2018 - CENTRALINO 0421/241265;13/11/2018;593;1;313;1;Spese correnti;3;Acquisto di beni e servizi;2;Acquisto di servizi;5;Utenze e canoni;1;Telefonia fissa;13/11/2018
1511;1;0;20,49;20,49;TELECOM ITALIA S.p.A.;X700D1930B;SALDO Fatt.n. 8E00090995  del 06/02/2018 TIM SPA - 2BIM 2018 - SCUOLA ELEMENTARE 0421/209513;13/11/2018;2975;1;317;1;Spese correnti;3;Acquisto di beni e servizi;2;Acquisto di servizi;5;Utenze e canoni;1;Telefonia fissa;13/11/2018
1512;1;0;36,03;36,03;TELECOM ITALIA S.p.A.;X700D1930B;SALDO Fatt.n. 8E00089492  del 06/02/2018 2BIM 2018;13/11/2018;593;1;313;1;Spese correnti;3;Acquisto di beni e servizi;2;Acquisto di servizi;5;Utenze e canoni;1;Telefonia fissa;13/11/2018
1513;1;0;26,54;26,54;TELECOM ITALIA S.p.A.;X700D1930B;SALDO Fatt.n. 8E00089952  del 06/02/2018 SPA - 2BIM 2018 - SCUOLA MEDIA 0421/209501;13/11/2018;3186;1;318;1;Spese correnti;3;Acquisto di beni e servizi;2;Acquisto di servizi;5;Utenze e canoni;1;Telefonia fissa;13/11/2018
1514;1;0;6,03;6,03;TELECOM ITALIA S.p.A.;X700D1930B;SALDO Fatt.n. 8E00089952  del 06/02/2018 SPA - 2BIM 2018 - SCUOLA MEDIA 0421/209501;13/11/2018;3186;1;318;1;Spese correnti;3;Acquisto di beni e servizi;2;Acquisto di servizi;5;Utenze e canoni;1;Telefonia fissa;13/11/2018
1515;1;0;6,89;6,89;TELECOM ITALIA S.p.A.;X700D1930B;SALDO Fatt.n. 8E00088309  del 06/02/2018 TIM SPA - 2BIM 2018 - 0421/241324;13/11/2018;593;1;313;1;Spese correnti;3;Acquisto di beni e servizi;2;Acquisto di servizi;5;Utenze e canoni;1;Telefonia fissa;13/11/2018
1516;1;0;13,8;851,22;STEP SRL;ZAD21E4728;SALDO Fatt.n. FATTPA 1213_18  del 20/09/2018;13/11/2018;215;0;401;1;Spese correnti;3;Acquisto di beni e servizi;2;Acquisto di servizi;3;Aggi di riscossione;999;Altri aggi di riscossione n.a.c.;13/11/2018
1516;2;0;22,36;851,22;STEP SRL;ZAD21E4728;SALDO Fatt.n. FATTPA 1382_18  del 12/10/2018 ICP AGGIO IMPOSTA PUBBLICITA' MESE SETTEMBRE 2018 - AGGIO DIRITTI PUBBLICHE AFFISSIONI E RECUPERO SPESE POSTALI;13/11/2018;215;0;401;1;Spese correnti;3;Acquisto di beni e servizi;2;Acquisto di servizi;3;Aggi di riscossione;999;Altri aggi di riscossione n.a.c.;13/11/2018
1516;3;0;43,32;851,22;STEP SRL;ZAD21E4728;SALDO Fatt.n. FATTPA 1404_18  del 15/10/2018 AGGIO RISCOSSIONE COATTIVA SETTEMBRE 2018 E RECUPERO SPESE POSTALI;13/11/2018;215;0;401;1;Spese correnti;3;Acquisto di beni e servizi;2;Acquisto di servizi;3;Aggi di riscossione;999;Altri aggi di riscossione n.a.c.;13/11/2018
1516;4;0;119,96;851,22;STEP SRL;ZAD21E4728;SALDO Fatt.n. FATTPA 1301_18  del 01/10/2018 AGGIO RISCOSSIONE COATTIVA AGOSTO 2018 E RECUPERO SPESE POSTALI;13/11/2018;215;0;401;1;Spese correnti;3;Acquisto di beni e servizi;2;Acquisto di servizi;3;Aggi di riscossione;999;Altri aggi di riscossione n.a.c.;13/11/2018
1516;5;0;141,66;851,22;STEP SRL;ZAD21E4728;SALDO Fatt.n. FATTPA 1085_18  del 06/08/2018;13/11/2018;215;0;401;1;Spese correnti;3;Acquisto di beni e servizi;2;Acquisto di servizi;3;Aggi di riscossione;999;Altri aggi di riscossione n.a.c.;13/11/2018
1516;6;0;174,17;851,22;STEP SRL;ZAD21E4728;SALDO Fatt.n. FATTPA 1091_18  del 07/08/2018;13/11/2018;215;0;401;1;Spese correnti;3;Acquisto di beni e servizi;2;Acquisto di servizi;3;Aggi di riscossione;999;Altri aggi di riscossione n.a.c.;13/11/2018
1516;7;0;335,95;851,22;STEP SRL;ZAD21E4728;SALDO Fatt.n. FATTPA 877_18  del 27/07/2018;13/11/2018;215;0;401;1;Spese correnti;3;Acquisto di beni e servizi;2;Acquisto di servizi;3;Aggi di riscossione;999;Altri aggi di riscossione n.a.c.;13/11/2018
1517;1;0;1.254,01;1.254,01;STEP SRL;ZAD21E4728;SALDO Fatt.n. FATTPA 767_18  del 05/07/2018;13/11/2018;215;0;401;1;Spese correnti;3;Acquisto di beni e servizi;2;Acquisto di servizi;3;Aggi di riscossione;999;Altri aggi di riscossione n.a.c.;13/11/2018
1518;1;0;104,41;104,41;STEP SRL;ZAD21E4728;SALDO Fatt.n. FATTPA 938_18  del 27/07/2018;13/11/2018;215;0;401;1;Spese correnti;3;Acquisto di beni e servizi;2;Acquisto di servizi;3;Aggi di riscossione;999;Altri aggi di riscossione n.a.c.;13/11/2018
1519;1;0;681,01;681,01;STEP SRL;ZAD21E4728;SALDO Fatt.n. FATTPA 1527_18  del 07/11/2018 ICP AGGIO IMPOSTA PUBBLICITA' MESE OTTOBRE 2018 E RECUPERO SPESE POSTALI;13/11/2018;215;0;401;1;Spese correnti;3;Acquisto di beni e servizi;2;Acquisto di servizi;3;Aggi di riscossione;999;Altri aggi di riscossione n.a.c.;13/11/2018
1520;1;0;5,48;5,48;ENEL ENERGIA SPA - SOC. CON UNICO SOCIO;6685388CB1;ACCONTO Fatt.n. 004810447284  del 08/03/2018 FORNITURA GAS - PERIODO FEBBRAIO 2018 - V. MARCONI N. 24 INT. 3;13/11/2018;593;4;360;1;Spese correnti;3;Acquisto di beni e servizi;2;Acquisto di servizi;5;Utenze e canoni;6;Gas;13/11/2018
1521;1;0;3,89;3,89;ENEL ENERGIA SPA - SOC. CON UNICO SOCIO;6685388CB1;SALDO Fatt.n. 004811590530  del 08/09/2018 MESE 9/18 - VIA MARCONI 24 3;13/11/2018;593;4;360;1;Spese correnti;3;Acquisto di beni e servizi;2;Acquisto di servizi;5;Utenze e canoni;6;Gas;13/11/2018
1522;1;0;0,01;0,01;LIVENZA TAGLIAMENTO ACQUE S.P.A.; ;C.C. 13 DEL 11/06/2018 - LTA - SERVIZIO IDRICO - ANNO 2018 - VIA MARCONI N. 24/2 - UTENZA 82435/82158;13/11/2018;593;4;159;1;Spese correnti;3;Acquisto di beni e servizi;2;Acquisto di servizi;5;Utenze e canoni;5;Acqua;13/11/2018
1523;1;0;55,73;601,58;TELECOM ITALIA S.p.A.;X700D1930B;Fatt.n. 8E00881242 del 05/10/2018 6^ BIM 2018 - COMUNE - FAX;16/11/2018;593;1;313;1;Spese correnti;3;Acquisto di beni e servizi;2;Acquisto di servizi;5;Utenze e canoni;1;Telefonia fissa;16/11/2018
1523;2;0;56,12;601,58;TELECOM ITALIA S.p.A.;X700D1930B;Fatt.n. 8A00751272 del 05/10/2018 6^ BIM 2018 - COMUNE CONTRATTO CENTRALINO;16/11/2018;593;1;313;1;Spese correnti;3;Acquisto di beni e servizi;2;Acquisto di servizi;5;Utenze e canoni;1;Telefonia fissa;16/11/2018
1523;3;0;91,29;601,58;TELECOM ITALIA S.p.A.;X700D1930B;Fatt.n. 8E00881008 del 05/10/2018 6^ BIM 2018 - COMUNE 209535;16/11/2018;593;1;313;1;Spese correnti;3;Acquisto di beni e servizi;2;Acquisto di servizi;5;Utenze e canoni;1;Telefonia fissa;16/11/2018
1523;4;0;186,3;601,58;TELECOM ITALIA S.p.A.;X700D1930B;Fatt.n. 8E00882181 del 05/10/2018 6^ BIM 2018 - COMUNE - 241265;16/11/2018;593;1;313;1;Spese correnti;3;Acquisto di beni e servizi;2;Acquisto di servizi;5;Utenze e canoni;1;Telefonia fissa;16/11/2018
1523;5;0;212,14;601,58;TELECOM ITALIA S.p.A.;X700D1930B;Fatt.n. 8E00882770 del 05/10/2018 6^ BIM 2018 - COMUNE - 209534;16/11/2018;593;1;313;1;Spese correnti;3;Acquisto di beni e servizi;2;Acquisto di servizi;5;Utenze e canoni;1;Telefonia fissa;16/11/2018
1524;1;0;120,93;120,93;TELECOM ITALIA S.p.A.;X700D1930B;Fatt.n. 8E00879982 del 05/10/2018 6^ BIM 2018 - SCUOLA ELEMENTARE - 209513;16/11/2018;2975;1;317;1;Spese correnti;3;Acquisto di beni e servizi;2;Acquisto di servizi;5;Utenze e canoni;1;Telefonia fissa;16/11/2018
1525;1;0;148,65;148,65;TELECOM ITALIA S.p.A.;X700D1930B;Fatt.n. 8E00879522 del 05/10/2018 6^ BIM 2018 - SCUOLA MEDIA - 209501;16/11/2018;3186;1;318;1;Spese correnti;3;Acquisto di beni e servizi;2;Acquisto di servizi;5;Utenze e canoni;1;Telefonia fissa;16/11/2018
1526;1;0;766,66;766,66;GLOBAL POWER SPA;622385037F;Fatt.n. V0/130786  del 01/11/2018 Fattura Energia Elettrica - MUNICIPIO MESE 10/2018;16/11/2018;593;1;67;1;Spese correnti;3;Acquisto di beni e servizi;2;Acquisto di servizi;5;Utenze e canoni;4;Energia elettrica;16/11/2018
1527;1;0;61,04;61,04;GLOBAL POWER SPA;622385037F;Fatt.n. V0/130792  del 01/11/2018 Fattura Energia Elettrica - EX DISTRETTO MESE 10/2018;16/11/2018;593;2;68;1;Spese correnti;3;Acquisto di beni e servizi;2;Acquisto di servizi;5;Utenze e canoni;4;Energia elettrica;16/11/2018
1528;1;0;53,02;53,02;GLOBAL POWER SPA;622385037F;Fatt.n. V0/130796  del 01/11/2018 Fattura Energia Elettrica - VIA LEONARDO DA VINCI MESE 10/2018;16/11/2018;593;3;69;1;Spese correnti;3;Acquisto di beni e servizi;2;Acquisto di servizi;5;Utenze e canoni;4;Energia elettrica;16/11/2018
1529;1;0;31,18;269,28;GLOBAL POWER SPA;622385037F;Fatt.n. V0/130800  del 01/11/2018 Fattura Energia Elettrica - VIA MARCONI MESE 10/2018;16/11/2018;593;4;71;1;Spese correnti;3;Acquisto di beni e servizi;2;Acquisto di servizi;5;Utenze e canoni;4;Energia elettrica;16/11/2018
1529;2;0;238,1;269,28;GLOBAL POWER SPA;622385037F;Fatt.n. V0/130799  del 01/11/2018 Fattura Energia Elettrica - VIA MARCONI, 24 MESE 10/2018;16/11/2018;593;4;71;1;Spese correnti;3;Acquisto di beni e servizi;2;Acquisto di servizi;5;Utenze e canoni;4;Energia elettrica;16/11/2018
1530;1;0;56,49;56,49;GLOBAL POWER SPA;622385037F;Fatt.n. V0/130787  del 01/11/2018 Fattura Energia Elettrica -VIA MARCONI, 26 MESE 10/2018;16/11/2018;593;6;70;1;Spese correnti;3;Acquisto di beni e servizi;2;Acquisto di servizi;5;Utenze e canoni;4;Energia elettrica;16/11/2018
1531;1;0;18,41;18,41;GLOBAL POWER SPA;622385037F;Fatt.n. V0/130795  del 01/11/2018 Fattura Energia Elettrica - CENTRO CULTURALE MESE 10/2018;16/11/2018;595;0;72;1;Spese correnti;3;Acquisto di beni e servizi;2;Acquisto di servizi;5;Utenze e canoni;4;Energia elettrica;16/11/2018
1532;1;0;129;129;GLOBAL POWER SPA;622385037F;Fatt.n. V0/130794  del 01/11/2018 Fattura Energia Elettrica - SCUOLA MATERNA E MEDIA MESE 10/2018;16/11/2018;2803;0;74;1;Spese correnti;3;Acquisto di beni e servizi;2;Acquisto di servizi;5;Utenze e canoni;4;Energia elettrica;16/11/2018
1533;1;0;520,2;520,2;GLOBAL POWER SPA;622385037F;Fatt.n. V0/130793  del 01/11/2018 Fattura Energia Elettrica - SCUOLA ELEMENTARE MESE 10/2018;16/11/2018;2975;1;73;1;Spese correnti;3;Acquisto di beni e servizi;2;Acquisto di servizi;5;Utenze e canoni;4;Energia elettrica;16/11/2018
1534;1;0;206,6;206,6;GLOBAL POWER SPA;622385037F;Fatt.n. V0/130794  del 01/11/2018 Fattura Energia Elettrica - SCUOLA MATERNA E MEDIA MESE 10/2018;16/11/2018;3186;1;75;1;Spese correnti;3;Acquisto di beni e servizi;2;Acquisto di servizi;5;Utenze e canoni;4;Energia elettrica;16/11/2018
1535;1;0;78,74;78,74;GLOBAL POWER SPA;622385037F;Fatt.n. V0/130788  del 01/11/2018 Fattura Energia Elettrica - CIMITERO MESE 10/2018;16/11/2018;5190;0;76;1;Spese correnti;3;Acquisto di beni e servizi;2;Acquisto di servizi;5;Utenze e canoni;4;Energia elettrica;16/11/2018
1536;1;0;73,44;73,44;GLOBAL POWER SPA;622385037F;Fatt.n. V0/130791  del 01/11/2018 Fattura Energia Elettrica - SOLL SMALT. RIFIUTI MESE 10/2018;16/11/2018;5810;0;80;1;Spese correnti;3;Acquisto di beni e servizi;2;Acquisto di servizi;5;Utenze e canoni;4;Energia elettrica;16/11/2018
1537;1;0;1.046,41;1.046,41;GLOBAL POWER SPA;622385037F;Fatt.n. V0/130789  del 01/11/2018 Fattura Energia Elettrica - PALAZZETTO DELLO SPORT MESE 10/2018;16/11/2018;6496;1;77;1;Spese correnti;3;Acquisto di beni e servizi;2;Acquisto di servizi;5;Utenze e canoni;4;Energia elettrica;16/11/2018
1538;1;0;187,83;187,83;GLOBAL POWER SPA;622385037F;Fatt.n. V0/130790  del 01/11/2018 Fattura Energia Elettrica - CAMPO BOCCE MESE 10/2018;16/11/2018;6496;2;78;1;Spese correnti;3;Acquisto di beni e servizi;2;Acquisto di servizi;5;Utenze e canoni;4;Energia elettrica;16/11/2018
1539;1;0;31,38;7.097,48;GLOBAL POWER SPA;622385037F;Fatt.n. V0/130798  del 01/11/2018 Fattura Energia Elettrica - ILLUMINAZIONE VIA BASEDAT MESE 10/2018;16/11/2018;7470;0;79;1;Spese correnti;3;Acquisto di beni e servizi;2;Acquisto di servizi;5;Utenze e canoni;4;Energia elettrica;16/11/2018
1539;2;0;74,44;7.097,48;GLOBAL POWER SPA;622385037F;Fatt.n. V0/130797  del 01/11/2018 Fattura Energia Elettrica - ILLUMINAZIONE VIA CASTELLO MESE 10/2018;16/11/2018;7470;0;79;1;Spese correnti;3;Acquisto di beni e servizi;2;Acquisto di servizi;5;Utenze e canoni;4;Energia elettrica;16/11/2018
1539;3;0;412,79;7.097,48;GLOBAL POWER SPA;622385037F;Fatt.n. V0/130801  del 01/11/2018 Fattura Energia Elettrica - ILLUMINAZIONE VIA VENEZIA MESE 10/2018;16/11/2018;7470;0;79;1;Spese correnti;3;Acquisto di beni e servizi;2;Acquisto di servizi;5;Utenze e canoni;4;Energia elettrica;16/11/2018
1539;4;0;6.578,87;7.097,48;GLOBAL POWER SPA;622385037F;SALDO Fatt.n. V0/130802  del 01/11/2018 Fattura Energia Elettrica - ILLUMINAZIONE PUBBLICA MESE 10/2018;16/11/2018;7470;0;79;1;Spese correnti;3;Acquisto di beni e servizi;2;Acquisto di servizi;5;Utenze e canoni;4;Energia elettrica;16/11/2018
1540;1;0;629,52;629,52;HALLEY VENETO S.R.L.;Z8E24FC734;SALDO Fatt.n. 1/181157  del 22/10/2018 AMPLIAMENTO SPAZIO SERVER;20/11/2018;660;0;380;1;Spese correnti;3;Acquisto di beni e servizi;2;Acquisto di servizi;19;Servizi informatici e di telecomunicazioni;7;Servizi di gestione documentale;20/11/2018
1541;1;0;196,65;196,65;STEP SRL;ZAD21E4728;SALDO Fatt.n. FATTPA 1557_18  del 13/11/2018 AGGIO RISCOSSIONE COATTIVA MESE DI OTTOBRE 2018 E RECUPERO SPESE POSTALI;20/11/2018;215;0;401;1;Spese correnti;3;Acquisto di beni e servizi;2;Acquisto di servizi;3;Aggi di riscossione;999;Altri aggi di riscossione n.a.c.;20/11/2018
1542;1;0;132;132;DELFINO & PARTNERS SPA; ;SALDO Fatt.n. 1107/PA  del 09/11/2018 PARTECIPAZIONE SEMINARIO DEL 07/11/18 A CASIER SU FINANZA LOCALE E BILANCIO 2019-2021;20/11/2018;370;0;378;1;Spese correnti;3;Acquisto di beni e servizi;2;Acquisto di servizi;4;Acquisto di servizi per formazione e addestramento del personale dell'ente;999;Acquisto di servizi per altre spese per formazione e addestramento n.a.c.;20/11/2018
1543;1;0;658,8;4.474,46;UNICOOPER SERVIZI S.C.;Z0221E0A5C;SALDO Fatt.n. 54/01  del 30/04/2018;20/11/2018;597;0;163;1;Spese correnti;3;Acquisto di beni e servizi;2;Acquisto di servizi;13;Servizi ausiliari per il funzionamento dell'ente;2;Servizi di pulizia e lavanderia;20/11/2018
1543;2;0;3.815,66;4.474,46;UNICOOPER SERVIZI S.C.;Z0221E0A5C;SALDO Fatt.n. 53/01  del 30/04/2018;20/11/2018;597;0;163;1;Spese correnti;3;Acquisto di beni e servizi;2;Acquisto di servizi;13;Servizi ausiliari per il funzionamento dell'ente;2;Servizi di pulizia e lavanderia;20/11/2018
1544;1;0;219,6;1.491,49;UNICOOPER SERVIZI S.C.;Z0221E0A5C;SALDO Fatt.n. 138/01  del 31/10/2018;20/11/2018;597;0;163;1;Spese correnti;3;Acquisto di beni e servizi;2;Acquisto di servizi;13;Servizi ausiliari per il funzionamento dell'ente;2;Servizi di pulizia e lavanderia;20/11/2018
1544;2;0;1.271,89;1.491,49;UNICOOPER SERVIZI S.C.;Z0221E0A5C;SALDO Fatt.n. 137/01  del 31/10/2018;20/11/2018;597;0;163;1;Spese correnti;3;Acquisto di beni e servizi;2;Acquisto di servizi;13;Servizi ausiliari per il funzionamento dell'ente;2;Servizi di pulizia e lavanderia;20/11/2018
1545;1;0;1.289,00;6.102,00;CASA RIPOSO G.FRANCESCON; ;SALDO Fatt.n. 215/PA  del 09/10/2018 MESE DI SETTEMBRE 2018;27/11/2018;6700;0;382;1;Spese correnti;3;Acquisto di beni e servizi;2;Acquisto di servizi;15;Contratti di servizio pubblico;9;Contratti di servizio di assistenza sociale domiciliare;27/11/2018
1545;2;0;1.344,00;6.102,00;CASA RIPOSO G.FRANCESCON; ;SALDO Fatt.n. 149/PA  del 31/07/2018 MESE GIUGNO 2018;27/11/2018;6700;0;382;1;Spese correnti;3;Acquisto di beni e servizi;2;Acquisto di servizi;15;Contratti di servizio pubblico;9;Contratti di servizio di assistenza sociale domiciliare;27/11/2018
1545;3;0;1.696,00;6.102,00;CASA RIPOSO G.FRANCESCON; ;SALDO Fatt.n. 197/PA  del 31/08/2018 MESE AGOSTO 2018;27/11/2018;6700;0;382;1;Spese correnti;3;Acquisto di beni e servizi;2;Acquisto di servizi;15;Contratti di servizio pubblico;9;Contratti di servizio di assistenza sociale domiciliare;27/11/2018
1545;4;0;1.773,00;6.102,00;CASA RIPOSO G.FRANCESCON; ;SALDO Fatt.n. 180/PA  del 30/08/2018 MESE LUGLIO 2018;27/11/2018;6700;0;382;1;Spese correnti;3;Acquisto di beni e servizi;2;Acquisto di servizi;15;Contratti di servizio pubblico;9;Contratti di servizio di assistenza sociale domiciliare;27/11/2018
1546;1;0;72.056,01;72.056,01;A.S.V.O. SPA AMBIENTE SERVIZI VENEZIA ORIENTALE; ;SALDO Fatt.n. 000056  del 31/10/2018 CORRISPETTIVO PER IL SERVIZIO DI SMALTIMENTO RIFIUTI RELATIVO AL 3. TRIMESTRE 2018;27/11/2018;5833;0;302;1;Spese correnti;3;Acquisto di beni e servizi;2;Acquisto di servizi;15;Contratti di servizio pubblico;4;Contratti di servizio per la raccolta rifiuti;27/11/2018
1547;1;0;2.165,50;2.165,50;COOP  NONCELLO SOC.COOP. SOCIALE ONLUS;Z4E1D242B3;SALDO Fatt.n. 2018/VPA/2416  del 30/09/2018 SERVIZI CIMITERIALI , MANUTENZIONE E PULIZIA 3. TRIMESTRE 2018;27/11/2018;5185;0;124;1;Spese correnti;3;Acquisto di beni e servizi;2;Acquisto di servizi;9;Manutenzione ordinaria e riparazioni;8;Manutenzione ordinaria e riparazioni di beni immobili;27/11/2018
1548;1;0;2.000,00;2.000,00;"ISTITUTO COMPRENSIVO ""I. NIEVO"""; ;ELARGIZIONE CONTRIBUTO ALL'I.C. NIEVO DI CINTO A SOSTEGNO DEL PIANO OFFERTA FORMATIVA 2018-2019. DET. BIBLIOTECA N. 421/2018;27/11/2018;2825;0;422;1;Spese correnti;4;Trasferimenti correnti;1;Trasferimenti correnti a Amministrazioni Pubbliche;1;Trasferimenti correnti a Amministrazioni Centrali;2;Trasferimenti correnti a Ministero dell'Istruzione - Istituzioni scolastiche;27/11/2018
1549;1;0;2.000,00;2.000,00;"ISTITUTO COMPRENSIVO ""I. NIEVO"""; ;ELARGIZIONE CONTRIBUTO ALL'I.C. NIEVO DI CINTO A SOSTEGNO DEL PIANO OFFERTA FORMATIVA 2018-2019. DET. BIBLIOTECA N. 421/2018;27/11/2018;2990;0;423;1;Spese correnti;4;Trasferimenti correnti;1;Trasferimenti correnti a Amministrazioni Pubbliche;1;Trasferimenti correnti a Amministrazioni Centrali;2;Trasferimenti correnti a Ministero dell'Istruzione - Istituzioni scolastiche;27/11/2018
1550;1;0;2.000,00;2.000,00;"ISTITUTO COMPRENSIVO ""I. NIEVO"""; ;ELARGIZIONE CONTRIBUTO ALL'I.C. NIEVO DI CINTO A SOSTEGNO DEL PIANO OFFERTA FORMATIVA 2018-2019. DET. BIBLIOTECA N. 421/2018;27/11/2018;3192;0;424;1;Spese correnti;4;Trasferimenti correnti;1;Trasferimenti correnti a Amministrazioni Pubbliche;1;Trasferimenti correnti a Amministrazioni Centrali;2;Trasferimenti correnti a Ministero dell'Istruzione - Istituzioni scolastiche;27/11/2018
1551;1;0;2.000,00;2.000,00;DE MUNARI MANUEL;Z1C25A1B32;SALDO Fatt.n. 3/PA  del 15/11/2018 CANONE ASSISTENZA ITC;27/11/2018;660;0;432;1;Spese correnti;3;Acquisto di beni e servizi;2;Acquisto di servizi;19;Servizi informatici e di telecomunicazioni;1;Gestione e manutenzione applicazioni;27/11/2018
1552;1;0;78.942,44;78.942,44;AZIENDA U.L.S.S. N. 4 VENETO ORIENTALE; ;"LIQUIDAZIONE QUOTA CAPITARIA ANNO 2018 PER I SERVIZI DELEGATI ALL'AZIENDA ULSS 4 ""VENETO ORIENTALE"" DET. SERVIZI SOCIALI N. 439/2018";27/11/2018;4500;0;417;1;Spese correnti;4;Trasferimenti correnti;1;Trasferimenti correnti a Amministrazioni Pubbliche;2;Trasferimenti correnti a Amministrazioni Locali;20;Trasferimenti correnti a Aziende sanitarie locali  a titolo di finanziamento del servizio sanitario nazionale;27/11/2018
1555;1;0;48,8;48,8;ORGANISMO DI MEDIAZIONE FORENSE DI PORDENONE; ;ORGANISMO DI MEDIAZIONE FORENSE DI PORDENONE - LIQUIDAZIONE PER AVVIO PROCEDURA DI MEDIAZIONE OBBLIGATORIA D.LGS 28/2010 - VERTENZA IN MATERIA DI DIRITTI REALI - PARROCCHIA SAN BIAGIO DI CINTO CAOMAGGIORE. DET. RAGIONERIA N. 474/2018;04/12/2018;418;0;439;1;Spese correnti;3;Acquisto di beni e servizi;2;Acquisto di servizi;11;Prestazioni professionali e specialistiche;999;Altre prestazioni professionali e specialistiche n.a.c.;04/12/2018
1556;1;0;38,55;1.002,35;RUI GUSTAVO;Z002494B3C;ACCONTO Fatt.n. 7  del 17/09/2018;04/12/2018;9450;2;341;2;Spese in conto capitale;2;Investimenti fissi lordi e acquisto di terreni;1;Beni materiali;9;Beni immobili;2;Fabbricati ad uso commerciale;04/12/2018
1556;2;0;963,8;1.002,35;RUI GUSTAVO;Z002494B3C;ACCONTO Fatt.n. 7  del 17/09/2018;04/12/2018;9450;2;341;2;Spese in conto capitale;2;Investimenti fissi lordi e acquisto di terreni;1;Beni materiali;9;Beni immobili;2;Fabbricati ad uso commerciale;04/12/2018
1557;1;0;6.050,00;6.050,00;C.D.F. SRL;ZAA23AB072;SALDO Fatt.n. 47  del 18/09/2018 LAVORI DI ABBATTIMENTO BARRIERE ARCHITETTONICHE CENTRO CULTURALE G.STEFANUTO - LAVORI IN ECONOMIA;04/12/2018;9450;2;341;2;Spese in conto capitale;2;Investimenti fissi lordi e acquisto di terreni;1;Beni materiali;9;Beni immobili;2;Fabbricati ad uso commerciale;04/12/2018
1558;1;0;12.210,00;12.210,00;C.D.F. SRL;72056301FC;SALDO Fatt.n. 48  del 18/09/2018 LAVORI ABBATTIMENTO BARRIERE ARCHITETTONICHE CENTRO CULTURALE G. STEFANUTO - II SAL;04/12/2018;9450;0;440;2;Spese in conto capitale;2;Investimenti fissi lordi e acquisto di terreni;1;Beni materiali;9;Beni immobili;2;Fabbricati ad uso commerciale;04/12/2018
1559;1;0;2.404,27;2.404,27;C.D.F. SRL;Z9523AB0AB;SALDO Fatt.n. 51  del 24/09/2018 PROGETTO DEFINITIVO ESECUTIVO LAVORI RIFACIMENTO PORZIONE SOLAIO COPERTURA CENTRO CULTURALE G.STEFANUTO;04/12/2018;9450;2;341;2;Spese in conto capitale;2;Investimenti fissi lordi e acquisto di terreni;1;Beni materiali;9;Beni immobili;2;Fabbricati ad uso commerciale;04/12/2018
1560;1;0;1.500,00;1.500,00;TREVISAN DANIELE;Z9C24D2B5B;SALDO Fatt.n. FATTPA 18_18  del 04/10/2018;04/12/2018;770;0;425;1;Spese correnti;3;Acquisto di beni e servizi;2;Acquisto di servizi;11;Prestazioni professionali e specialistiche;999;Altre prestazioni professionali e specialistiche n.a.c.;04/12/2018
1561;1;0;1.268,80;1.268,80;ITS ENGINEERING COMPANY SRL;Z5923A520F;SALDO Fatt.n. 0000011/PA  del 23/05/2018;04/12/2018;770;0;342;1;Spese correnti;3;Acquisto di beni e servizi;2;Acquisto di servizi;11;Prestazioni professionali e specialistiche;999;Altre prestazioni professionali e specialistiche n.a.c.;04/12/2018
1562;1;0;5.117,21;5.117,21;NICOLETTI MAURO;ZCF1E97CB7;ACCONTO Fatt.n. FATTPA 12_18  del 01/10/2018;04/12/2018;9450;0;257;2;Spese in conto capitale;2;Investimenti fissi lordi e acquisto di terreni;1;Beni materiali;9;Beni immobili;2;Fabbricati ad uso commerciale;04/12/2018
1563;1;0;2.537,60;2.537,60;NICOLETTI MAURO;Z552329083;SALDO Fatt.n. FATTPA 9_18  del 14/07/2018;04/12/2018;9450;2;341;2;Spese in conto capitale;2;Investimenti fissi lordi e acquisto di terreni;1;Beni materiali;9;Beni immobili;2;Fabbricati ad uso commerciale;04/12/2018
1564;1;0;43,92;43,92;TIME-NET SRL;CIGZ1A1EDF;ACCONTO Fatt.n. 471/PA  del 01/10/2018 CANONE BIMESTRALE ANTICIPATO  LINEA DATI ADSL CON KASKO NOVEMBRE-DICEMBRE 2018;04/12/2018;595;0;240;1;Spese correnti;3;Acquisto di beni e servizi;2;Acquisto di servizi;5;Utenze e canoni;999;Utenze e canoni per altri servizi n.a.c.;04/12/2018
1565;1;0;57,34;57,34;TIME-NET SRL;CIGZ1A1EDF;SALDO Fatt.n. 471/PA  del 01/10/2018 CANONE BIMESTRALE ANTICIPATO  LINEA DATI ADSL CON KASKO NOVEMBRE-DICEMBRE 2018;04/12/2018;595;0;455;1;Spese correnti;3;Acquisto di beni e servizi;2;Acquisto di servizi;5;Utenze e canoni;999;Utenze e canoni per altri servizi n.a.c.;04/12/2018
1566;1;0;6.362,17;6.362,17;C.D.F. SRL;72056301FC;ACCONTO Fatt.n. 50  del 24/09/2018 LAVORI ABBATTIMENTO BARRIERE ARCHITETTONICHE CENTRO CULTURALE G. STEFANUTO -  SAL FINALE;04/12/2018;9450;0;327;2;Spese in conto capitale;2;Investimenti fissi lordi e acquisto di terreni;1;Beni materiali;9;Beni immobili;2;Fabbricati ad uso commerciale;04/12/2018
1567;1;0;3.356,31;3.356,31;C.D.F. SRL;72056301FC;ACCONTO Fatt.n. 50  del 24/09/2018 LAVORI ABBATTIMENTO BARRIERE ARCHITETTONICHE CENTRO CULTURALE G. STEFANUTO -  SAL FINALE;04/12/2018;9450;0;440;2;Spese in conto capitale;2;Investimenti fissi lordi e acquisto di terreni;1;Beni materiali;9;Beni immobili;2;Fabbricati ad uso commerciale;04/12/2018
1568;1;0;30;30;C.D.F. SRL;72056301FC;ACCONTO Fatt.n. 50  del 24/09/2018 LAVORI ABBATTIMENTO BARRIERE ARCHITETTONICHE CENTRO CULTURALE G. STEFANUTO -  SAL FINALE;04/12/2018;9450;0;458;2;Spese in conto capitale;2;Investimenti fissi lordi e acquisto di terreni;1;Beni materiali;9;Beni immobili;2;Fabbricati ad uso commerciale;04/12/2018
1569;1;0;9.948,37;9.948,37;C.D.F. SRL;72056301FC;SALDO Fatt.n. 50  del 24/09/2018 LAVORI ABBATTIMENTO BARRIERE ARCHITETTONICHE CENTRO CULTURALE G. STEFANUTO -  SAL FINALE;04/12/2018;9450;0;458;2;Spese in conto capitale;2;Investimenti fissi lordi e acquisto di terreni;1;Beni materiali;9;Beni immobili;2;Fabbricati ad uso commerciale;04/12/2018
1570;1;0;7.175,75;7.175,75;C.D.F. SRL;72056301FC;SALDO Fatt.n. 52  del 24/09/2018 LAVORI ABBATTIMENTO BARRIERE ARCHITETTONICHE CENTRO CULTURALE G. STEFANUTO -  LAVORI SUPPLEMENTARI;04/12/2018;9450;0;458;2;Spese in conto capitale;2;Investimenti fissi lordi e acquisto di terreni;1;Beni materiali;9;Beni immobili;2;Fabbricati ad uso commerciale;04/12/2018
1571;1;0;22,46;144,46;TIME-NET SRL;Z831A60AC4;SALDO Fatt.n. 493/PA  del 30/10/2018 TRAFFICO VOCE SERVIZIO VOIPSTAR PERIODO GIUGNO-SETTEMBRE 2018;04/12/2018;3186;1;454;1;Spese correnti;3;Acquisto di beni e servizi;2;Acquisto di servizi;5;Utenze e canoni;999;Utenze e canoni per altri servizi n.a.c.;04/12/2018
1571;2;0;122;144,46;TIME-NET SRL;Z831A60AC4;SALDO Fatt.n. 472/PA  del 01/10/2018 CANONE BIMESTRALE ANTICIPATO NOVEMBRE-DICEMBRE 2018;04/12/2018;3186;1;454;1;Spese correnti;3;Acquisto di beni e servizi;2;Acquisto di servizi;5;Utenze e canoni;999;Utenze e canoni per altri servizi n.a.c.;04/12/2018
1572;1;0;1.139,34;1.139,34;VIVENDA SPA;7245909942;SALDO Fatt.n. VB18002813  del 31/10/2018 PASTI INSEGNANTI RISTORAZIONE;04/12/2018;3000;0;402;1;Spese correnti;3;Acquisto di beni e servizi;2;Acquisto di servizi;15;Contratti di servizio pubblico;6;Contratti di servizio per le mense scolastiche;04/12/2018
1573;1;0;54,58;54,58;VIVENDA SPA;7245909942;SALDO Fatt.n. VB18002814  del 31/10/2018 PASTI DIPENDENTI RISTORAZIONE;04/12/2018;775;0;403;1;Spese correnti;3;Acquisto di beni e servizi;2;Acquisto di servizi;14;Servizi di ristorazione;999;Altri servizi di ristorazione;04/12/2018
1574;1;0;280,44;280,44;COMUNE DI PORTOGRUARO; ;"LIQUIDAZIONE CO-FINANZIAMENTO PROGETTO ""SPORTELLO ABRAMO 2018""";04/12/2018;7005;0;434;1;Spese correnti;4;Trasferimenti correnti;1;Trasferimenti correnti a Amministrazioni Pubbliche;2;Trasferimenti correnti a Amministrazioni Locali;3;Trasferimenti correnti a Comuni;04/12/2018
1575;1;0;1.146,00;1.146,00;CASA RIPOSO G.FRANCESCON; ;SALDO Fatt.n. 233/PA  del 22/11/2018 CONVENZIONE PER LA GESTIONE DI ALCUNI SERVIZI SOCIO ASSISTENZIALI - MESE DI OTTOBRE 2018;04/12/2018;6700;0;382;1;Spese correnti;3;Acquisto di beni e servizi;2;Acquisto di servizi;15;Contratti di servizio pubblico;9;Contratti di servizio di assistenza sociale domiciliare;04/12/2018
1576;1;0;592,08;592,08;GLOBAL POWER SPA;622385037F;Fatt.n. V0/144327 del 01/12/2018 Fattura Energia Elettrica - MUNICIPIO MESE 11/2018;10/12/2018;593;1;67;1;Spese correnti;3;Acquisto di beni e servizi;2;Acquisto di servizi;5;Utenze e canoni;4;Energia elettrica;10/12/2018
1577;1;0;59,41;59,41;GLOBAL POWER SPA;622385037F;Fatt.n. V0/144333 del 01/12/2018 Fattura Energia Elettrica - EX DISTRETTO MESE 11/2018;10/12/2018;593;2;68;1;Spese correnti;3;Acquisto di beni e servizi;2;Acquisto di servizi;5;Utenze e canoni;4;Energia elettrica;10/12/2018
1578;1;0;54,72;54,72;GLOBAL POWER SPA;622385037F;Fatt.n. V0/144336 del 01/12/2018 Fattura Energia Elettrica - VIA LEONARDO DA VINCI MESE 11/2018;10/12/2018;593;3;69;1;Spese correnti;3;Acquisto di beni e servizi;2;Acquisto di servizi;5;Utenze e canoni;4;Energia elettrica;10/12/2018
1579;1;0;29,3;173,19;GLOBAL POWER SPA;622385037F;Fatt.n. V0/144340 del 01/12/2018 Fattura Energia Elettrica - VIA MARCONI MESE 11/2018;10/12/2018;593;4;71;1;Spese correnti;3;Acquisto di beni e servizi;2;Acquisto di servizi;5;Utenze e canoni;4;Energia elettrica;10/12/2018
1579;2;0;143,89;173,19;GLOBAL POWER SPA;622385037F;Fatt.n. V0/144339 del 01/12/2018 Fattura Energia Elettrica - VIA MARCONI, 24 MESE 11/2018;10/12/2018;593;4;71;1;Spese correnti;3;Acquisto di beni e servizi;2;Acquisto di servizi;5;Utenze e canoni;4;Energia elettrica;10/12/2018
1580;1;0;52,39;52,39;GLOBAL POWER SPA;622385037F;Fatt.n. V0/144328 del 01/12/2018 Fattura Energia Elettrica - VIA MARCONI, 26 MESE 11/2018;10/12/2018;593;6;70;1;Spese correnti;3;Acquisto di beni e servizi;2;Acquisto di servizi;5;Utenze e canoni;4;Energia elettrica;10/12/2018
1581;1;0;208,03;208,03;GLOBAL POWER SPA;622385037F;Fatt.n. V0/144335 del 01/12/2018 Fattura Energia Elettrica - SCUOLA MATERNA E MEDIA MESE 11/2018;10/12/2018;2803;0;74;1;Spese correnti;3;Acquisto di beni e servizi;2;Acquisto di servizi;5;Utenze e canoni;4;Energia elettrica;10/12/2018
1582;1;0;441,8;441,8;GLOBAL POWER SPA;622385037F;Fatt.n. V0/144334 del 01/12/2018 Fattura Energia Elettrica - SCUOLA ELEMENTARE MESE 11/2018;10/12/2018;2975;1;73;1;Spese correnti;3;Acquisto di beni e servizi;2;Acquisto di servizi;5;Utenze e canoni;4;Energia elettrica;10/12/2018
1583;1;0;333,16;333,16;GLOBAL POWER SPA;622385037F;Fatt.n. V0/144335 del 01/12/2018 Fattura Energia Elettrica - SCUOLA MATERNA E MEDIA MESE 11/2018;10/12/2018;3186;1;75;1;Spese correnti;3;Acquisto di beni e servizi;2;Acquisto di servizi;5;Utenze e canoni;4;Energia elettrica;10/12/2018
1584;1;0;65,56;65,56;GLOBAL POWER SPA;622385037F;Fatt.n. V0/144329 del 01/12/2018 Fattura Energia Elettrica - CIMITERO MESE 11/2018;10/12/2018;5190;0;76;1;Spese correnti;3;Acquisto di beni e servizi;2;Acquisto di servizi;5;Utenze e canoni;4;Energia elettrica;10/12/2018
1585;1;0;71,49;71,49;GLOBAL POWER SPA;622385037F;Fatt.n. V0/144332 del 01/12/2018 Fattura Energia Elettrica - IMP. SOLLEV. RIFIUTI MESE 11/2018;10/12/2018;5810;0;80;1;Spese correnti;3;Acquisto di beni e servizi;2;Acquisto di servizi;5;Utenze e canoni;4;Energia elettrica;10/12/2018
1586;1;0;1.122,07;1.122,07;GLOBAL POWER SPA;622385037F;Fatt.n. V0/144330 del 01/12/2018 Fattura Energia Elettrica - PALAZZETTO SPORT MESE 11/2018;10/12/2018;6496;1;77;1;Spese correnti;3;Acquisto di beni e servizi;2;Acquisto di servizi;5;Utenze e canoni;4;Energia elettrica;10/12/2018
1587;1;0;148,16;148,16;GLOBAL POWER SPA;622385037F;Fatt.n. V0/144331 del 01/12/2018 Fattura Energia Elettrica - BOCCIOFILA MESE 11/2018;10/12/2018;6496;2;78;1;Spese correnti;3;Acquisto di beni e servizi;2;Acquisto di servizi;5;Utenze e canoni;4;Energia elettrica;10/12/2018
1588;1;0;29,57;508,46;GLOBAL POWER SPA;622385037F;Fatt.n. V0/144338 del 01/12/2018 Fattura Energia Elettrica - ILLUM. PUBBL. VIA BASEDAT MESE 11/2018;10/12/2018;7470;0;79;1;Spese correnti;3;Acquisto di beni e servizi;2;Acquisto di servizi;5;Utenze e canoni;4;Energia elettrica;10/12/2018
1588;2;0;68,99;508,46;GLOBAL POWER SPA;622385037F;Fatt.n. V0/144337 del 01/12/2018 Fattura Energia Elettrica - ILLUM, PUBBL. VIA CASTELLO MESE 11/2018;10/12/2018;7470;0;79;1;Spese correnti;3;Acquisto di beni e servizi;2;Acquisto di servizi;5;Utenze e canoni;4;Energia elettrica;10/12/2018
1588;3;0;409,9;508,46;GLOBAL POWER SPA;622385037F;Fatt.n. V0/144341 del 01/12/2018 Fattura Energia Elettrica - ILLUM. PUBBL. VIA VENEZIA MESE 11/2018;10/12/2018;7470;0;79;1;Spese correnti;3;Acquisto di beni e servizi;2;Acquisto di servizi;5;Utenze e canoni;4;Energia elettrica;10/12/2018
1589;1;0;6.547,09;6.547,09;GLOBAL POWER SPA;622385037F;SALDO Fatt.n. V0/144342  del 01/12/2018 Fattura Energia Elettrica - ILLUMINAZIONE PUBBLICA MESE 11/2018;10/12/2018;7470;0;79;1;Spese correnti;3;Acquisto di beni e servizi;2;Acquisto di servizi;5;Utenze e canoni;4;Energia elettrica;10/12/2018
1590;1;0;154,88;154,88;OLIVETTI SPA;Z050E4F4CA;SALDO Fatt.n. 0000016853  del 08/11/2018 0400210595;10/12/2018;593;1;313;1;Spese correnti;3;Acquisto di beni e servizi;2;Acquisto di servizi;5;Utenze e canoni;1;Telefonia fissa;10/12/2018
1613;1;0;48,6;48,6;DIPENDENTI COMUNALI DIVERSI; ;STIPENDI MESE DI: DICEMBRE 18;11/12/2018;216;0;93;1;Spese correnti;3;Acquisto di beni e servizi;2;Acquisto di servizi;2;Organizzazione eventi, pubblicita` e servizi per trasferta;1;Rimborso per viaggio e trasloco;11/12/2018
1619;1;0;49,6;49,6;DIPENDENTI COMUNALI DIVERSI; ;STIPENDI MESE DI: DICEMBRE 18;11/12/2018;230;0;94;1;Spese correnti;3;Acquisto di beni e servizi;2;Acquisto di servizi;2;Organizzazione eventi, pubblicita` e servizi per trasferta;1;Rimborso per viaggio e trasloco;11/12/2018
1647;1;0;329,34;329,34;DIPENDENTI COMUNALI DIVERSI; ;STIPENDI MESE DI: DICEMBRE 18;11/12/2018;9050;0;407;1;Spese correnti;3;Acquisto di beni e servizi;2;Acquisto di servizi;12;Lavoro flessibile, quota LSU e acquisto di servizi da agenzie di lavoro interinale;999;Altre forme di lavoro flessibile n.a.c.;11/12/2018
1648;1;0;5,52;5,52;I.N.P.S.; ;VERS.CONTRIB. MESE: DICEMBRE 18 A CARICO DELL`ENTE;11/12/2018;9050;0;407;1;Spese correnti;3;Acquisto di beni e servizi;2;Acquisto di servizi;12;Lavoro flessibile, quota LSU e acquisto di servizi da agenzie di lavoro interinale;999;Altre forme di lavoro flessibile n.a.c.;11/12/2018
1649;1;0;81,58;81,58;ISTITUTO PREVIDENZA CPDEL; ;VERS.CONTRIB. MESE: DICEMBRE 18 A CARICO DELL`ENTE;11/12/2018;9050;0;407;1;Spese correnti;3;Acquisto di beni e servizi;2;Acquisto di servizi;12;Lavoro flessibile, quota LSU e acquisto di servizi da agenzie di lavoro interinale;999;Altre forme di lavoro flessibile n.a.c.;11/12/2018
1650;1;0;28,58;28,58;REGIONE VENETO-IRAP AMMINISTR.PUBBL.VENEZIA; ;VERS. IMPOSTE MESE: DICEMBRE 18 PER I.R.A.P.;11/12/2018;9050;0;407;1;Spese correnti;3;Acquisto di beni e servizi;2;Acquisto di servizi;12;Lavoro flessibile, quota LSU e acquisto di servizi da agenzie di lavoro interinale;999;Altre forme di lavoro flessibile n.a.c.;11/12/2018
1651;1;0;16,13;16,13;I.N.P.D.A.P. - T.F.R.; ;VERS.CONTRIB. MESE: DICEMBRE 18 A CARICO DELL`ENTE;11/12/2018;9050;0;407;1;Spese correnti;3;Acquisto di beni e servizi;2;Acquisto di servizi;12;Lavoro flessibile, quota LSU e acquisto di servizi da agenzie di lavoro interinale;999;Altre forme di lavoro flessibile n.a.c.;11/12/2018
1659;1;0;2.327,54;2.327,54;COLLABORATORI E AMMINISTRATORI DIVERSI; ;STIPENDI MESE DI: DICEMBRE 18;11/12/2018;10;0;50;1;Spese correnti;3;Acquisto di beni e servizi;2;Acquisto di servizi;1;Organi e incarichi istituzionali dell'amministrazione;1;Organi istituzionali dell'amministrazione - Indennità;11/12/2018
1665;1;0;392,94;392,94;SANTIN RINO DI SANTIN DARIO;ZB02536420;SALDO Fatt.n. 202PA  del 15/10/2018 RIPARAZIONE DECESPUGLIATORI;11/12/2018;6210;0;383;1;Spese correnti;3;Acquisto di beni e servizi;2;Acquisto di servizi;9;Manutenzione ordinaria e riparazioni;5;Manutenzione ordinaria e riparazioni di attrezzature;11/12/2018
1666;1;0;854,98;854,98;PIANEZZOLA CLAUDIO;Z092344006;SALDO Fatt.n. 26/01  del 31/10/2018 GESTIONE DEGLI IMPIANTI DI PUBBLICA ILLUMINAZIONE EFFETTUATI NEL MESE DI OTTOBRE 2018;11/12/2018;7460;1;180;1;Spese correnti;3;Acquisto di beni e servizi;2;Acquisto di servizi;15;Contratti di servizio pubblico;15;Contratti di servizio per l'illuminazione pubblica;11/12/2018
1667;1;0;3.855,81;3.855,81;AZIENDA AGRICOLA VIVAI OLIVO TOFFOLI DI ALDO TOFFOLI E;Z4D2299619;SALDO Fatt.n. 38  del 31/10/2018 Prestazione per servizio di sfalcio dei cigli stradali - anno 2018 - 3 intervento - RDO 1904576;11/12/2018;7371;0;138;1;Spese correnti;3;Acquisto di beni e servizi;2;Acquisto di servizi;9;Manutenzione ordinaria e riparazioni;12;Manutenzione ordinaria e riparazioni di terreni e beni materiali non prodotti;11/12/2018
1668;1;0;823,5;823,5;OZONE SRL;ZEE25E28EF;SALDO Fatt.n. PV/122  del 30/11/2018 FORNITURA DI N. 5 SALVAGENTE 100N RIVERGUARD PER IL GRUPPO COMUNALE DI PROTEZIONE CIVILE;11/12/2018;11015;1;427;2;Spese in conto capitale;2;Investimenti fissi lordi e acquisto di terreni;1;Beni materiali;5;Attrezzature;999;Attrezzature n.a.c.;11/12/2018
1669;1;0;-782,54;1.117,66;ASE ACEGASAPSAMGA SERVIZI ELETTRICI SPA;6309396649;SALDO Fatt.n. 331800002894  del 26/09/2018 ALTRI SERVIZI;11/12/2018;593;1;287;1;Spese correnti;3;Acquisto di beni e servizi;2;Acquisto di servizi;5;Utenze e canoni;6;Gas;11/12/2018
1669;2;0;295,32;1.117,66;ASE ACEGASAPSAMGA SERVIZI ELETTRICI SPA;6309396649;ACCONTO Fatt.n. 331800003504  del 15/11/2018 QUOTA AMMORTAMENTO LAVORI - 1^ RATA STAGIONE 2018/2019;11/12/2018;593;1;287;1;Spese correnti;3;Acquisto di beni e servizi;2;Acquisto di servizi;5;Utenze e canoni;6;Gas;11/12/2018
1669;3;0;1.604,88;1.117,66;ASE ACEGASAPSAMGA SERVIZI ELETTRICI SPA;6309396649;ACCONTO Fatt.n. 331800003502  del 15/11/2018 SERVIZIO FORNITURA CALORE - 1^ RATA STAGIONE 2018/2019;11/12/2018;593;1;287;1;Spese correnti;3;Acquisto di beni e servizi;2;Acquisto di servizi;5;Utenze e canoni;6;Gas;11/12/2018
1670;1;0;2.318,00;2.318,00;F.LLI BERTOLI ELETTROIMPIANTI S.N.C. DI BERTOLI G. & M.;Z342492A30;SALDO Fatt.n. 000007/E  del 17/09/2018;11/12/2018;3181;0;345;1;Spese correnti;3;Acquisto di beni e servizi;2;Acquisto di servizi;9;Manutenzione ordinaria e riparazioni;8;Manutenzione ordinaria e riparazioni di beni immobili;11/12/2018
1672;1;0;-1.077,91;1.132,73;ASE ACEGASAPSAMGA SERVIZI ELETTRICI SPA;6309396649;SALDO Fatt.n. 331800002894  del 26/09/2018 ALTRI SERVIZI;11/12/2018;2975;1;289;1;Spese correnti;3;Acquisto di beni e servizi;2;Acquisto di servizi;5;Utenze e canoni;6;Gas;11/12/2018
1672;2;0;2.210,64;1.132,73;ASE ACEGASAPSAMGA SERVIZI ELETTRICI SPA;6309396649;ACCONTO Fatt.n. 331800003502  del 15/11/2018 SERVIZIO FORNITURA CALORE - 1^ RATA STAGIONE 2018/2019;11/12/2018;2975;1;289;1;Spese correnti;3;Acquisto di beni e servizi;2;Acquisto di servizi;5;Utenze e canoni;6;Gas;11/12/2018
1673;1;0;-663,63;897,77;ASE ACEGASAPSAMGA SERVIZI ELETTRICI SPA;6309396649;SALDO Fatt.n. 331800002894  del 26/09/2018 ALTRI SERVIZI;11/12/2018;2975;2;290;1;Spese correnti;3;Acquisto di beni e servizi;2;Acquisto di servizi;5;Utenze e canoni;6;Gas;11/12/2018
1673;2;0;200,4;897,77;ASE ACEGASAPSAMGA SERVIZI ELETTRICI SPA;6309396649;ACCONTO Fatt.n. 331800003504  del 15/11/2018 QUOTA AMMORTAMENTO LAVORI - 1^ RATA STAGIONE 2018/2019;11/12/2018;2975;2;290;1;Spese correnti;3;Acquisto di beni e servizi;2;Acquisto di servizi;5;Utenze e canoni;6;Gas;11/12/2018
1673;3;0;1.361,00;897,77;ASE ACEGASAPSAMGA SERVIZI ELETTRICI SPA;6309396649;ACCONTO Fatt.n. 331800003502  del 15/11/2018 SERVIZIO FORNITURA CALORE - 1^ RATA STAGIONE 2018/2019;11/12/2018;2975;2;290;1;Spese correnti;3;Acquisto di beni e servizi;2;Acquisto di servizi;5;Utenze e canoni;6;Gas;11/12/2018
1674;1;0;1.127,28;1.127,28;METEO SYSTEM SRL;ZEB25CE2EC;SALDO Fatt.n. 64/PA  del 20/11/2018 STAZIONE METEREOLOGICA VANTAGE WIRELESS;11/12/2018;11015;1;420;2;Spese in conto capitale;2;Investimenti fissi lordi e acquisto di terreni;1;Beni materiali;5;Attrezzature;999;Attrezzature n.a.c.;11/12/2018
1675;1;0;-823,75;865,63;ASE ACEGASAPSAMGA SERVIZI ELETTRICI SPA;6309396649;SALDO Fatt.n. 331800002894  del 26/09/2018 ALTRI SERVIZI;11/12/2018;3186;1;291;1;Spese correnti;3;Acquisto di beni e servizi;2;Acquisto di servizi;5;Utenze e canoni;6;Gas;11/12/2018
1675;2;0;1.689,38;865,63;ASE ACEGASAPSAMGA SERVIZI ELETTRICI SPA;6309396649;ACCONTO Fatt.n. 331800003502  del 15/11/2018 SERVIZIO FORNITURA CALORE - 1^ RATA STAGIONE 2018/2019;11/12/2018;3186;1;291;1;Spese correnti;3;Acquisto di beni e servizi;2;Acquisto di servizi;5;Utenze e canoni;6;Gas;11/12/2018
1676;1;0;-514,37;540,53;ASE ACEGASAPSAMGA SERVIZI ELETTRICI SPA;6309396649;SALDO Fatt.n. 331800002894  del 26/09/2018 ALTRI SERVIZI;11/12/2018;2803;0;292;1;Spese correnti;3;Acquisto di beni e servizi;2;Acquisto di servizi;5;Utenze e canoni;6;Gas;11/12/2018
1676;2;0;1.054,90;540,53;ASE ACEGASAPSAMGA SERVIZI ELETTRICI SPA;6309396649;ACCONTO Fatt.n. 331800003502  del 15/11/2018 SERVIZIO FORNITURA CALORE - 1^ RATA STAGIONE 2018/2019;11/12/2018;2803;0;292;1;Spese correnti;3;Acquisto di beni e servizi;2;Acquisto di servizi;5;Utenze e canoni;6;Gas;11/12/2018
1677;1;0;829,6;829,6;MONACO EUFEMIA;ZAA25CD749;SALDO Fatt.n. 61P  del 20/11/2018 VENDITA DEFIBRILLATORI PER GRUPPO PROTEZIONE CIVILE;11/12/2018;11015;1;421;2;Spese in conto capitale;2;Investimenti fissi lordi e acquisto di terreni;1;Beni materiali;5;Attrezzature;2;Attrezzature sanitarie;11/12/2018
1678;1;0;-419,4;440,73;ASE ACEGASAPSAMGA SERVIZI ELETTRICI SPA;6309396649;SALDO Fatt.n. 331800002894  del 26/09/2018 ALTRI SERVIZI;11/12/2018;3186;2;293;1;Spese correnti;3;Acquisto di beni e servizi;2;Acquisto di servizi;5;Utenze e canoni;6;Gas;11/12/2018
1678;2;0;860,13;440,73;ASE ACEGASAPSAMGA SERVIZI ELETTRICI SPA;6309396649;ACCONTO Fatt.n. 331800003502  del 15/11/2018 SERVIZIO FORNITURA CALORE - 1^ RATA STAGIONE 2018/2019;11/12/2018;3186;2;293;1;Spese correnti;3;Acquisto di beni e servizi;2;Acquisto di servizi;5;Utenze e canoni;6;Gas;11/12/2018
1679;1;0;-2.070,79;2.493,71;ASE ACEGASAPSAMGA SERVIZI ELETTRICI SPA;6309396649;SALDO Fatt.n. 331800002894  del 26/09/2018 ALTRI SERVIZI;11/12/2018;6496;1;294;1;Spese correnti;3;Acquisto di beni e servizi;2;Acquisto di servizi;5;Utenze e canoni;6;Gas;11/12/2018
1679;2;0;317,62;2.493,71;ASE ACEGASAPSAMGA SERVIZI ELETTRICI SPA;6309396649;SALDO Fatt.n. 331800003504  del 15/11/2018 QUOTA AMMORTAMENTO LAVORI - 1^ RATA STAGIONE 2018/2019;11/12/2018;6496;1;294;1;Spese correnti;3;Acquisto di beni e servizi;2;Acquisto di servizi;5;Utenze e canoni;6;Gas;11/12/2018
1679;3;0;4.246,88;2.493,71;ASE ACEGASAPSAMGA SERVIZI ELETTRICI SPA;6309396649;SALDO Fatt.n. 331800003502  del 15/11/2018 SERVIZIO FORNITURA CALORE - 1^ RATA STAGIONE 2018/2019;11/12/2018;6496;1;294;1;Spese correnti;3;Acquisto di beni e servizi;2;Acquisto di servizi;5;Utenze e canoni;6;Gas;11/12/2018
1680;1;0;2.537,60;2.537,60;CENTRO RICAMBI DUE SRL;ZBD25B7E61;SALDO Fatt.n. 10043  del 30/11/2018 ACQUISTO MOTOPOMPA COMPLETA PER GRUPPO PROTEZIONE CIVILE;11/12/2018;11015;1;428;2;Spese in conto capitale;2;Investimenti fissi lordi e acquisto di terreni;1;Beni materiali;5;Attrezzature;999;Attrezzature n.a.c.;11/12/2018
1681;1;0;854,98;854,98;PIANEZZOLA CLAUDIO;Z092344006;SALDO Fatt.n. 28/01  del 30/11/2018 GESTIONE DEGLI IMPIANTI DI PUBBLICA ILLUMINAZIONE EFFETTUATI NEL MESE DI NOVEMBRE 2018;11/12/2018;7460;1;180;1;Spese correnti;3;Acquisto di beni e servizi;2;Acquisto di servizi;15;Contratti di servizio pubblico;15;Contratti di servizio per l'illuminazione pubblica;11/12/2018
1682;1;0;800;800;ELETTRONET DI BERNES LUCA;Z5725D5010;SALDO Fatt.n. 0021/EL  del 07/12/2018 ACQUISTO COMPUTER PORTATILE PER GRUPPO PROTEZIONE CIVILE;11/12/2018;11015;1;419;2;Spese in conto capitale;2;Investimenti fissi lordi e acquisto di terreni;1;Beni materiali;5;Attrezzature;999;Attrezzature n.a.c.;11/12/2018
1684;1;0;3.660,00;3.660,00;F.LLI DEMO COSTRUZIONI SRL;Z2824929E5;SALDO Fatt.n. 39  del 14/09/2018 SISTEMAZIONE INGRESSO CIMITERO;11/12/2018;5185;1;344;1;Spese correnti;3;Acquisto di beni e servizi;2;Acquisto di servizi;9;Manutenzione ordinaria e riparazioni;8;Manutenzione ordinaria e riparazioni di beni immobili;11/12/2018
1685;1;0;176,53;176,53;ATIS S.R.L.;ZE8251435F;SALDO Fatt.n. 1042/V5  del 31/10/2018 Rapportino intervento n.ro 97197 del 15/10/2018 Presso: Mensa scolastica.;11/12/2018;594;0;384;1;Spese correnti;3;Acquisto di beni e servizi;2;Acquisto di servizi;9;Manutenzione ordinaria e riparazioni;4;Manutenzione ordinaria e riparazioni di impianti e macchinari;11/12/2018
1697;1;0;300;300;A.N.U.S.C.A. SRL; ;SALDO Fatt.n. 2249E  del 19/11/2018 POMERIGGI DI STUDIO PER OPERATORI SERVIZI DEMOGRAFICI;14/12/2018;370;0;377;1;Spese correnti;3;Acquisto di beni e servizi;2;Acquisto di servizi;4;Acquisto di servizi per formazione e addestramento del personale dell'ente;999;Acquisto di servizi per altre spese per formazione e addestramento n.a.c.;14/12/2018
1701;1;0;341,93;341,93;COOP ALLEANZA 3.0 SOCIETA' COOPERATIVA;ZD51A8D02D;SALDO Fatt.n. DF2018742  del 24/10/2018 FORNITURA TESTI SCOLASTICI;14/12/2018;2995;0;251;1;Spese correnti;3;Acquisto di beni e servizi;1;Acquisto di beni;2;Altri beni di consumo;1;Carta, cancelleria e stampati;14/12/2018
1702;1;0;30,69;30,69;COMUNE DI AZZANO DECIMO; ;LIQUIDAZIONE COMUNE DI AZZANO DECIMO PER FORNITURA LIBRI DI TESTO SCUOLA PRIMARIA CINTO CAOMAGGIORE AS 2018/2019 - COME DA RICHIESTA DEL 26/10/2018. DET. BIBLIOTECA N. 412/2018;14/12/2018;2995;0;251;1;Spese correnti;3;Acquisto di beni e servizi;1;Acquisto di beni;2;Altri beni di consumo;1;Carta, cancelleria e stampati;14/12/2018
1703;1;0;1.432,32;1.432,32;GLOBAL POWER SPA;Z522470754;SALDO Fatt.n. V1/2064  del 18/10/2018 Servizio Connessione Energia Elettrica aumento potenza;14/12/2018;593;4;322;1;Spese correnti;3;Acquisto di beni e servizi;2;Acquisto di servizi;5;Utenze e canoni;4;Energia elettrica;14/12/2018
1704;1;0;65,24;65,24;COOP ALLEANZA 3.0 SOCIETA' COOPERATIVA;ZD51A8D02D;SALDO Fatt.n. DF2018918  del 26/11/2018 FORNITURA TESTI SCOLASTICI;14/12/2018;2995;0;251;1;Spese correnti;3;Acquisto di beni e servizi;1;Acquisto di beni;2;Altri beni di consumo;1;Carta, cancelleria e stampati;14/12/2018
1705;1;0;21,84;21,84;COMUNE DI SESTO AL REGHENA; ;RIMBORSO SPESE PER FORNITURA LIBRI DI TESTO A.S. 2018/2019 SCUOLA PRIMARIA CINTO CAOMAGGIORE COME DA RICHIESTA DEL 04/12/2018 - DET. BIBLIOTECA N. 507/2018;14/12/2018;2995;0;251;1;Spese correnti;3;Acquisto di beni e servizi;1;Acquisto di beni;2;Altri beni di consumo;1;Carta, cancelleria e stampati;14/12/2018
1706;1;0;4.624,78;4.624,78;TESSER LUIGI;Z1F25B0B3D;SALDO Fatt.n. 2PA2018  del 12/11/2018 COMPENSO REVISORE DEL CONTO PERIODO 01/04/2018 - 31/12/2018;14/12/2018;50;0;406;1;Spese correnti;3;Acquisto di beni e servizi;2;Acquisto di servizi;1;Organi e incarichi istituzionali dell'amministrazione;8;Compensi agli organi istituzionali di revisione, di controllo ed altri incarichi istituzionali dell'amministrazione;14/12/2018
1707;1;0;200;200;A.N.U.S.C.A. SRL;Z5B1FOF48D;SALDO Fatt.n. 2195E  del 13/12/2017;14/12/2018;370;0;259;1;Spese correnti;3;Acquisto di beni e servizi;2;Acquisto di servizi;4;Acquisto di servizi per formazione e addestramento del personale dell'ente;999;Acquisto di servizi per altre spese per formazione e addestramento n.a.c.;14/12/2018
1708;1;0;45;109;MAGGIOLI SPA; ;SALDO Fatt.n. 0005950884  del 31/01/2018 FORNITURA DI LIBRI;14/12/2018;400;0;115;1;Spese correnti;3;Acquisto di beni e servizi;1;Acquisto di beni;2;Altri beni di consumo;1;Carta, cancelleria e stampati;14/12/2018
1708;2;0;64;109;MAGGIOLI SPA; ;SALDO Fatt.n. 0005950998  del 31/01/2018 FORNITURA DI LIBRI;14/12/2018;400;0;115;1;Spese correnti;3;Acquisto di beni e servizi;1;Acquisto di beni;2;Altri beni di consumo;1;Carta, cancelleria e stampati;14/12/2018
1710;1;0;72,83;72,83;ENEL ENERGIA SPA - SOC. CON UNICO SOCIO;6685388CB1;Fatt.n. 004812039755  del 13/11/2018 FORNITURA GAS MESE 10/2018 - VIA ROMA / TRIESTE 2/A;14/12/2018;593;2;90;1;Spese correnti;3;Acquisto di beni e servizi;2;Acquisto di servizi;5;Utenze e canoni;6;Gas;14/12/2018
1711;1;0;28,4;28,4;ENEL ENERGIA SPA - SOC. CON UNICO SOCIO;6685388CB1;Fatt.n. 004812046335  del 13/11/2018 FORNITURA GAS MESE 10/2018 - VIA MARCONI, 25;14/12/2018;593;5;88;1;Spese correnti;3;Acquisto di beni e servizi;2;Acquisto di servizi;5;Utenze e canoni;6;Gas;14/12/2018
1712;1;0;41,63;41,63;ENEL ENERGIA SPA - SOC. CON UNICO SOCIO;6685388CB1;Fatt.n. 004812060310  del 13/11/2018 FORNITURA GAS MESE 10/2018 - VIA MARCONI, 26;14/12/2018;593;6;89;1;Spese correnti;3;Acquisto di beni e servizi;2;Acquisto di servizi;5;Utenze e canoni;6;Gas;14/12/2018
1713;1;0;22,66;22,66;ENEL ENERGIA SPA - SOC. CON UNICO SOCIO;6685388CB1;SALDO Fatt.n. 004812078947  del 14/11/2018 FORNITURA GAS MESE 10/2018 - VIA MARCONI 24/3;14/12/2018;593;4;360;1;Spese correnti;3;Acquisto di beni e servizi;2;Acquisto di servizi;5;Utenze e canoni;6;Gas;14/12/2018
1719;1;0;1.374,56;1.374,56;TESORIERE COMUNALE; ;ERARIO IVA - ACCONTO IVA ANNO 2019;18/12/2018;8200;0;405;1;Spese correnti;10;Altre spese correnti;3;Versamenti IVA a debito;1;Versamenti IVA a debito per le gestioni commerciali;1;Versamenti IVA a debito per le gestioni commerciali;18/12/2018
1722;1;0;32,02;227,47;TELECOM ITALIA S.p.A.;X700D1930B;SALDO Fatt.n. 8E00089367  del 06/02/2018 TIM SPA - 2BIM 2018 - FAX 0421/241030;31/12/2018;593;1;313;1;Spese correnti;3;Acquisto di beni e servizi;2;Acquisto di servizi;5;Utenze e canoni;1;Telefonia fissa;31/12/2018
1722;2;0;59,16;227,47;TELECOM ITALIA S.p.A.;X700D1930B;SALDO Fatt.n. 8E00089509  del 06/02/2018 TIM SPA - 2BIM 2018 - CENTRALINO 0421/209535;31/12/2018;593;1;313;1;Spese correnti;3;Acquisto di beni e servizi;2;Acquisto di servizi;5;Utenze e canoni;1;Telefonia fissa;31/12/2018
1722;3;0;136,29;227,47;TELECOM ITALIA S.p.A.;X700D1930B;SALDO Fatt.n. 8E00090389  del 06/02/2018 TIM SPA - 2BIM 2018 - CENTRALINO 0421/241265;31/12/2018;593;1;313;1;Spese correnti;3;Acquisto di beni e servizi;2;Acquisto di servizi;5;Utenze e canoni;1;Telefonia fissa;31/12/2018
1723;1;0;93,12;93,12;TELECOM ITALIA S.p.A.;X700D1930B;SALDO Fatt.n. 8E00090995  del 06/02/2018 TIM SPA - 2BIM 2018 - SCUOLA ELEMENTARE 0421/209513;31/12/2018;2975;1;317;1;Spese correnti;3;Acquisto di beni e servizi;2;Acquisto di servizi;5;Utenze e canoni;1;Telefonia fissa;31/12/2018
1724;1;0;169,42;169,42;TELECOM ITALIA S.p.A.;X700D1930B;SALDO Fatt.n. 8E00089492  del 06/02/2018 2BIM 2018;31/12/2018;593;1;313;1;Spese correnti;3;Acquisto di beni e servizi;2;Acquisto di servizi;5;Utenze e canoni;1;Telefonia fissa;31/12/2018
1725;1;0;120,63;120,63;TELECOM ITALIA S.p.A.;X700D1930B;SALDO Fatt.n. 8E00089952  del 06/02/2018 SPA - 2BIM 2018 - SCUOLA MEDIA 0421/209501;31/12/2018;3186;1;318;1;Spese correnti;3;Acquisto di beni e servizi;2;Acquisto di servizi;5;Utenze e canoni;1;Telefonia fissa;31/12/2018
1726;1;0;16,56;16,56;ENEL ENERGIA SPA - SOC. CON UNICO SOCIO;6685388CB1;SALDO Fatt.n. 004811590530  del 08/09/2018 MESE 9/18 - VIA MARCONI 24 3;31/12/2018;593;4;360;1;Spese correnti;3;Acquisto di beni e servizi;2;Acquisto di servizi;5;Utenze e canoni;6;Gas;31/12/2018
1727;1;0;18,57;18,57;ENEL ENERGIA SPA - SOC. CON UNICO SOCIO; ;C.C. 32 DEL 29.11.2018 - ENERGIA ELETTRICA MESE OTTOBRE 2018;31/12/2018;593;4;360;1;Spese correnti;3;Acquisto di beni e servizi;2;Acquisto di servizi;5;Utenze e canoni;6;Gas;31/12/2018
1728;1;0;32,51;32,51;ENEL ENERGIA SPA - SOC. CON UNICO SOCIO;6685388CB1;SALDO Fatt.n. 004810447284  del 08/03/2018 FORNITURA GAS - PERIODO FEBBRAIO 2018 - V. MARCONI N. 24 INT. 3;31/12/2018;593;4;360;1;Spese correnti;3;Acquisto di beni e servizi;2;Acquisto di servizi;5;Utenze e canoni;6;Gas;31/12/2018
1729;1;0;9,78;9,78;ENEL ENERGIA SPA - SOC. CON UNICO SOCIO; ;C.C. 25 DEL 23/07/2018 - MAND. 1161- FORNITURA GAS - SEDE PARCO - PERIODO MAGGIO/GIUGNO 2018;31/12/2018;593;4;360;1;Spese correnti;3;Acquisto di beni e servizi;2;Acquisto di servizi;5;Utenze e canoni;6;Gas;31/12/2018
1730;1;0;4.277,48;4.277,48;CASSA DEPOSITI E PRESTITI; ;CASSA DEPOSITI E PRESTITI-RATE MUTUI 31.12.2018 (P.      34 -R.);31/12/2018;600;0;278;1;Spese correnti;7;Interessi passivi;5;Interessi su Mutui e altri finanziamenti a medio lungo termine;4;Interessi passivi su finanziamenti a medio lungo termine a Imprese;3;Interessi passivi a Cassa Depositi e Prestiti SPA su mutui e altri finanziamenti a medio lungo termine;31/12/2018
1731;1;0;611,87;611,87;CASSA DEPOSITI E PRESTITI; ;CASSA DEPOSITI E PRESTITI-RATE MUTUI 31.12.2018 (P.      34 -R.);31/12/2018;600;0;279;1;Spese correnti;7;Interessi passivi;5;Interessi su Mutui e altri finanziamenti a medio lungo termine;4;Interessi passivi su finanziamenti a medio lungo termine a Imprese;3;Interessi passivi a Cassa Depositi e Prestiti SPA su mutui e altri finanziamenti a medio lungo termine;31/12/2018
1732;1;0;8.782,06;8.782,06;CASSA DEPOSITI E PRESTITI; ;CASSA DEPOSITI E PRESTITI-RATE MUTUI 31.12.2018 (P.      34 -R.);31/12/2018;3610;0;280;1;Spese correnti;7;Interessi passivi;5;Interessi su Mutui e altri finanziamenti a medio lungo termine;4;Interessi passivi su finanziamenti a medio lungo termine a Imprese;3;Interessi passivi a Cassa Depositi e Prestiti SPA su mutui e altri finanziamenti a medio lungo termine;31/12/2018
1733;1;0;654,47;654,47;CASSA DEPOSITI E PRESTITI; ;CASSA DEPOSITI E PRESTITI-RATE MUTUI 31.12.2018 (P.      34 -R.);31/12/2018;3610;0;281;1;Spese correnti;7;Interessi passivi;5;Interessi su Mutui e altri finanziamenti a medio lungo termine;4;Interessi passivi su finanziamenti a medio lungo termine a Imprese;3;Interessi passivi a Cassa Depositi e Prestiti SPA su mutui e altri finanziamenti a medio lungo termine;31/12/2018
1734;1;0;314,43;314,43;CASSA DEPOSITI E PRESTITI; ;CASSA DEPOSITI E PRESTITI-RATE MUTUI 31.12.2018 (P.      34 -R.);31/12/2018;3611;0;275;1;Spese correnti;7;Interessi passivi;5;Interessi su Mutui e altri finanziamenti a medio lungo termine;4;Interessi passivi su finanziamenti a medio lungo termine a Imprese;3;Interessi passivi a Cassa Depositi e Prestiti SPA su mutui e altri finanziamenti a medio lungo termine;31/12/2018
1735;1;0;1.618,08;1.618,08;ISTITUTO PER IL CREDITO SPORTIVO; ;ICS ISTITUTO PER IL CREDITO SP-PAGAMENTO SDD: 000000216609829 (P.      35 -R.);31/12/2018;3612;0;282;1;Spese correnti;7;Interessi passivi;5;Interessi su Mutui e altri finanziamenti a medio lungo termine;4;Interessi passivi su finanziamenti a medio lungo termine a Imprese;999;Interessi passivi a altre imprese su finanziamenti a medio lungo termine;31/12/2018
1736;1;0;158,44;158,44;CASSA DEPOSITI E PRESTITI; ;CASSA DEPOSITI E PRESTITI-RATE MUTUI 31.12.2018 (P.      34 -R.);31/12/2018;5240;0;277;1;Spese correnti;7;Interessi passivi;5;Interessi su Mutui e altri finanziamenti a medio lungo termine;4;Interessi passivi su finanziamenti a medio lungo termine a Imprese;3;Interessi passivi a Cassa Depositi e Prestiti SPA su mutui e altri finanziamenti a medio lungo termine;31/12/2018
1737;1;0;5.828,25;5.828,25;CASSA DEPOSITI E PRESTITI; ;CASSA DEPOSITI E PRESTITI-RATE MUTUI 31.12.2018 (P.      34 -R.);31/12/2018;5680;0;283;1;Spese correnti;7;Interessi passivi;5;Interessi su Mutui e altri finanziamenti a medio lungo termine;4;Interessi passivi su finanziamenti a medio lungo termine a Imprese;3;Interessi passivi a Cassa Depositi e Prestiti SPA su mutui e altri finanziamenti a medio lungo termine;31/12/2018
1738;1;0;23.471,85;23.471,85;CASSA DEPOSITI E PRESTITI; ;CASSA DEPOSITI E PRESTITI-RATE MUTUI 31.12.2018 (P.      34 -R.);31/12/2018;7500;0;276;1;Spese correnti;7;Interessi passivi;5;Interessi su Mutui e altri finanziamenti a medio lungo termine;4;Interessi passivi su finanziamenti a medio lungo termine a Imprese;3;Interessi passivi a Cassa Depositi e Prestiti SPA su mutui e altri finanziamenti a medio lungo termine;31/12/2018
